Workbook

Sheet Introduction
A18: Science Based Target Setting - Excel Tool (Beta Version) The SDA tool calculates emissions reduction targets based on the relative contribution of the company to the total sector activity and their carbon intensity relative to the sector’s intensity in the base year. It is in line with IPCC recommendations and can provide companies a benchmark to develop long-term climate targets up to 2050. This draft online tool will be subject to further revision and testing. The following input data is needed to estimate a science-based target: a) The sectors where the company operates. The sectors with the largest emissions must be included (See SDA Methodology http://sciencebasedtargets.org/wp-content/uploads/2015/05/Sectoral-Decarbonization-Approach-Report.pdf Appendix VI. Sector definitions). This Excel tool allows othe selection of only one sector at a time. b) The base year to which the target will be related and the target year for which the target is set. The range of base years is 2010-2015. For the sectors selected, the following input needs to be provided: 1) Activities in the base year (e.g. tonnes of cement, square meters, etc.) 2)The expected activity for each sector in the target year 3) The base year emissions for scopes 1 and 2 (although the methodology uses only CO2, please use CO2e for a more robust target setting)

Sheet Instructions
D3: Science Based Target Setting - Excel Tool
D4: Version 8.1
A7: Instructions 1. About the SDA methodology The SDA methodology takes into account inherent differences between sectors such as mitigation potential and how fast each sector can grow relative to economic and population growth. Using the detailed-sector scenarios from the International Energy Agency’s 2°C Scenario (IEA 2DS) model, it is possible to estimate the 2°C-compatible carbon intensity for any sector by dividing the total direct emissions of the sector in any given year by the total activity of the sector in the same year (IEA, 2012). This yields a sector intensity pathway. For homogeneous sectors, physical indicators (activity) are used as the allocation method. The assumption is that the carbon intensity of each company in a homogeneous sector will converge with the sectoral carbon intensity in 2050. In the absence of more sector-specific decarbonization pathways for heterogeneous sectors, the methodology estimates a linear absolute reduction using the carbon budget assigned to the sector. 2. How to define the annual activity growth rate? (e.g. flat or negative activity growth rates in recent years) Once your company has selected the activity indicator per each sector selected, the annual activity growth rate should be estimated, based on the same activity indicators. The recommendation is to use data for at least 5 years to derive an average growth rate, to avoid using flat or negative trends. For the case of sectors using value added, although it may not be a common practice to estimate the annual growth rate of value added, an estimate can be used, to align it to the methodology. 3. General Definitions Greenhouse gases (GHG): Includes the seven main greenhouse gases, as listed in the Greenhouse Gas Protocol: Corporate Accounting and Reporting Standard, namely: Carbon dioxide (CO2); Methane (CH4); Nitrous oxide (N2O); Hydrofluorocarbons (HFCs); Perfluorocarbons (PFCs); Sulphur hexafluoride (SF6); and Nitrogen trifluoride (NF3). Scopes 1, 2 and 3: The GHG Protocol categorizes direct and indirect emissions into three scopes: Scope 1: All direct GHG emissions. Scope 2: Indirect GHG emissions from consumption of purchased electricity, heat, cooling, or steam. Scope 3: Other indirect emissions, such as the extraction and production of purchased materials and fuels, transport-related activities in vehicles not owned or controlled by the reporting entity, electricity-related activities (e.g. T&D losses) not covered in Scope 2, outsourced activities, waste disposal, etc. GHG Protocol, FAQ on-line Value added: Added value is used as indicator for the company's contribution to GDP. The tool uses gross profit as a proxy input for value added. Companies that disclose value added in their annual reports can also use value added instead of gross profit. Value added is sometimes called Operating Profit or EBITDA plus all personnel costs. The annual activity growth rate for added value should not include inflation as the target is set in base year dollars. 4. Treatment of scopes in the tool Scope 1: Scope 1 emissions include process emissions as well as the generation of power, heat or steam from fossil fuels. Other scope 1 emissions come from buildings and fleet. When a company has the majority of its emissions in buildings and its fleet, it can then split up its activities and emissions in the 'Service buildings' sector and the 'Light road passenger transport' sector to obtain separate targets for each activity. Scope 2: The decarbonization pathway in the methodology and tool for Scope 2 emissions considers only the power sector, due to the lack of data for heat & steam. Nevertheless, companies are expected to enter not only emissions from purchased electricity but the total scope 2 emissions (which would include heat & steam). This increases the robustness of the methodology. Scope 2 GHG emissions should be based on the actual emission factor associated with the qualifying contractual instruments of the purchased power it owns (i.e. market-based method according to GHG Protocol Scope 2 Guidance). The purchased power should meet the Quality Criteria identified in the Guidance. If not, the location-based method should be used (i.e. average energy generation emission factors for defined locations, including local, sub-national or national boundaries). 5. Sector Definitions Find complete sector definitions using the "Sector guidance" links in the tool. It is important to note that the tool currently does not account for differences in production technologies in sectors. For aluminium production, for example, we do not distinguish between virgin and recycled aluminium, which each have very different energy consumptions profiles and emissions. The performance of the company is always compared to the average performance of the sector as a whole.
A66: 6. FAQ http://sciencebasedtargets.org/sda-tool/ 7. Quick Guide to the SDA http://sciencebasedtargets.org/downloads/ Sources All data used in the tool is from the International Energy Agency (IEA) ETP 2016. The following sources have been used: Activities and emissions from the scenario, industry, buildings and transport summaries, GDP growth and electricity use of transport all from the IEA Energy Technology http://www.iea.org/etp/ The IEA plans to release regular updates of the underlying data of the 2DS every two years. The authors plan to update this methodology in line with the IPCC updates of the assessment report approximately every five years. An earlier revision will be considered if a significant change occurs in the IEA ETP 2DS data. A regular update to the methodology every five years fits with common practices in the business sector to adjust GHG emissions reduction targets in a similar timeframe. Methodology insights Impact of the annual activity growth rate on emission targets The intensity of the company in any given year y, for an homogeneous sector is given by the following formula: Where my represents the market share in the year y, my Market share parameter in year y CAb Activity of the company in base year b SAb Activity of the sector in base year b CAy Activity of the company in year y SAy Activity of the sector in year y
A136: The figure above shows the effect of different annual activity growth levels. With all other parameter values fixed, a different annual activity growth results in a change in market share, causing the market share parameter my to change. The initial carbon intensity and the 2050 target intensity remain the same, but in order to limit emissions within the carbon budget, the pathway is altered in between. Then, the chart shows that different annual activity growths for companies result in different carbon intensity pathways compared to the sector. When the annual activity growth of the company exceeds that from the sector, it results in an increase of the parameter m. Therefore, the greater the annual activity growth of the company compared to the sector, the greater the m parameter. The company that shows a high activity growth of 4% (thus a greater market share) has a stricter intensity pathway to discount this change in market share. Assumptions: The assumptions used in the methodology are described in more detail in Section 4.2 of the SDA Methodology at http://sciencebasedtargets.org/downloads/.

Sheet Front-end. Target Setting
A3: Science Based Target Setting - Excel Tool
A4: Version 8.11
A5: This Tool is intended to support companies in their modeling of science-based emissions reductions targets, as well as to assist companies and interested third parties in assessing and evaluating companies' targets. However, to be approved by the Science Based Targets initiative, companies need to make sure their target(s) fulfill the SBTi criteria: https://sciencebasedtargets.org/wp-content/uploads/2017/02/SBTi-criteria.pdf
A7: Also please note that the SBTi asseses "forward-looking" ambition of target(s) by using the year the target is submitted to the initiative (or the most recent completed GHG inventory). | J7: Support: | L7: info@sciencebasedtargets.org
C12: Section 1. Sector definition
C13: Section 1. Selection of the sector
D14: Please select the relevant sector to the activities of the company
P15: 1
D16: Power Generation
D17: Industry | E17: Iron & Steel Industry
E18: Cement
E19: Chemical and Petrochemical Industry (not available) | L19: Disabled. This sector needs critical refinements. In the meantime, chemical companies can use the absolute contraction approach. Consult the SBTi methods here: https://sciencebasedtargets.org/methods/
E20: Aluminium
E21: Pulp & Paper
E22: Manufacture of light-duty passenger vehicles (not available) | L22: To model scope 3 use-phase targets for road vehicle manufacturers please use the SDA Transport Tool: https://sciencebasedtargets.org/transport-2/
E23: Other Industry (Please only use this sector with a 2014 base year or onwards. If your base year is prior to 2014, you can use the absolute contraction approach) | F23: Construction industry
F24: Manufacture of beverages
F25: Manufacture of computer, electronic and optical products
F26: Manufacture of electrical equipment
F27: Manufacture of fabricated metal products
F28: Manufacture of food products
F29: Manufacture of furniture
F30: Manufacture of leather and related products
F31: Manufacture of machinery and equipment
F32: Manufacture of other non-metallic mineral products
F33: Manufacture of rubber and plastics products
F34: Manufacture of textiles
F35: Manufacture of tobacco products
F36: Manufacture of wearing apparel
F37: Manufacture of wood and cork products
F38: Mining and quarrying
F39: Non-ferrous metals basic industries
F40: Other manufacturing / processing
D41: Transport Services | E41: Passenger transport - Aviation (not available) | L41: To model targets for transport activities use the SDA Transport tool: https://sciencebasedtargets.org/transport-2/
E42: Passenger transport - Light Road (not available)
E43: Passenger transport - Heavy Road (not available)
E44: Passenger transport - Rail (not available)
E45: Other transport (not available)
D46: Services / Commercial Buildings | E46: Trade / Retail
E47: Finance
E48: Real Estate
E49: Public Administration
E50: Health
E51: Food and lodging
E52: Education
E53: Other commercial services
C57: Section 2. Target Setting Period
D59: Please select the base year | I59: Any base year between 2010 and the current year is eligible
D61: Please select the target year | I61: Any target year after the base year and up to 2050 is eligible
G62: .
C64: Section 3. Activity and emissions data
D66: Activity data
D68: Activity in the base year | L68: =IF(OR(ISBLANK(sector),sector=0),"<Please select a sector>",CONCATENATE("in ",VLOOKUP(sector,sector_units,3))) -> in MWh
D69: Expected activity in the target year | L69: =IF(OR(ISBLANK(sector),sector=0),"<Please select a sector>",CONCATENATE("in ",VLOOKUP(sector,sector_units,3))) -> in MWh
D71: Emissions data in the base year
D73: Scope 1 emissions | L73: in tCO2e
D74: Scope 2 emissions | L74: in tCO2e | M74: =IF(OR(sector=1),"Scope 2 emissions are not required for this sector","") -> Scope 2 emissions are not required for this sector
C84: Section 4. Results
F86: =VLOOKUP(sector,Sector_type,2) -> Power Generation
F88: Base year | H88: Target year | J88: Variation
F89: =by -> 0 | H89: =ty -> 0
D90: Scope 1 emissions (tCO2e) | F90: =S1_by -> 0 | H90: =S1_ty_SDA ->  | J90: =(S1_ty_SDA-S1_by)/S1_by -> 
D91: Scope 2 emissions (tCO2e) | F91: =IF(OR(sector=1),"",S2_by) ->  | H91: =IF(OR(sector=1),"",S2_ty_SDA) ->  | J91: =IF(OR(sector=1),"",((S2_ty_SDA-S2_by)/S2_by)) -> 
D92: Scope 1+2 emissions(tCO2e) | F92: =IF(F91="",S1_by,S2_by+S1_by) -> 0 | H92: =IF(H91="",S1_ty_SDA,S1_ty_SDA+S2_ty_SDA) ->  | J92: =IF(J91="",J90,((H92-F92)/F92)) -> 
F94: Base year | H94: Target year | J94: Variation
F95: =by -> 0 | H95: =ty -> 0
D96: =IF(OR(ISBLANK(sector),sector=0),"<Please select a sector>",CONCATENATE("Scope 1 carbon intensity ","(",VLOOKUP(sector,sector_units,5),")")) -> Scope 1 carbon intensity (tCO2/MWh) | E96: =IF(OR(ISBLANK(sector),sector=0),"<Please select a sector>",CONCATENATE("in ",VLOOKUP(sector,sector_units,3))) -> in MWh | F96: =S1_CI_by ->  | H96: =S1_CI_ty_SDA ->  | J96: =(H96-F96)/F96 -> 
D97: =IF(OR(ISBLANK(sector),sector=0),"<Please select a sector>",CONCATENATE("Scope 2 carbon intensity ","(",VLOOKUP(sector,sector_units,5),")")) -> Scope 2 carbon intensity (tCO2/MWh) | E97: =IF(OR(ISBLANK(sector),sector=0),"<Please select a sector>",CONCATENATE("in ",VLOOKUP(sector,sector_units,3))) -> in MWh | F97: =IF(OR(sector=1),"",S2_CI_by) ->  | H97: =IF(OR(sector=1),"",S2_CI_ty_SDA) ->  | J97: =IF(OR(sector=1),"",(H97-F97)/F97) -> 
D99: =IF(OR(ISBLANK(sector),sector=0),"<Please select a sector>",CONCATENATE("Scope 1+2 carbon intensity ","(",VLOOKUP(sector,sector_units,5),")")) -> Scope 1+2 carbon intensity (tCO2/MWh) | E99: =IF(OR(ISBLANK(abcd),abcd=0),"<Please select a sector>",CONCATENATE("in ",VLOOKUP(abcd,abcde,3))) -> in MWh | F99: =IF(OR(sector=1),"",'Back-end. Calculations'!D88) ->  | H99: =IF(OR(sector=1),"",'Back-end. Calculations'!E88) ->  | J99: =IF(J97="","",(H99-F99)/F99) -> 

Sheet Back-end. Catalogues (hidden)
A1: Base year | B1: Target year | C1: This year | E1: Code | F1: Sector | G1: Activity indicator | H1: Type of Sector | I1: Intensity Indicator
A2: 2010 | B2: 2010 | C2: =YEAR(TODAY()) -> 2018 | E2: 1 | F2: Power Generation | G2: MWh | H2: Homogeneous | I2: tCO2/MWh
A3: 2011 | B3: 2011 | E3: 2 | F3: Iron & Steel Industry | G3: tonnes crude steel | H3: Homogeneous | I3: tCO2/ton crude steel
A4: 2012 | B4: 2012 | E4: 3 | F4: Cement | G4: tonnes cement | H4: Homogeneous | I4: tCO2/tons cement
A5: 2013 | B5: 2013 | F5: Chemical and Petrochemical Industry | G5: $ value added | H5: Heterogeneous | I5: Index
A6: 2014 | B6: 2014 | E6: 4 | F6: Aluminium | G6: tonnes aluminium | H6: Homogeneous | I6: tCO2/ton aluminium
A7: 2015 | B7: 2015 | E7: 5 | F7: Pulp & Paper | G7: tonnes paper and cardboard | H7: Homogeneous | I7: tCO2/ton paper and cardboard
A8: 2016 | B8: 2016 | F8: Manufacture of light-road automotor vehicles | G8: $ value added | H8: Heterogeneous | I8: Index
A9: 2017 | B9: 2017 | E9: 6 | F9: Other Industry | G9: $ value added | H9: Heterogeneous | I9: Index
A10: 2018 | B10: 2018 | F10: Passenger transport - Air | G10: revenue passenger kilometres | H10: Homogeneous | I10: gCO2/passenger-km
A11: 2019 | B11: 2019 | F11: Passenger transport - Light Road | G11: revenue passenger kilometres | H11: Homogeneous | I11: gCO2/passenger-km
A12: 2020 | B12: 2020 | F12: Passenger transport - Heavy Road | G12: revenue passenger kilometres | H12: Homogeneous | I12: gCO2/passenger-km
A13: 2021 | B13: 2021 | F13: Passenger transport - Rail | G13: revenue passenger kilometres | H13: Homogeneous | I13: gCO2/passenger-km
A14: 2022 | B14: 2022 | F14: Other transport | G14: $ value added | H14: Heterogeneous | I14: Index
A15: 2023 | B15: 2023 | E15: 11 | F15: Services / Commercial Buildings | G15: m2 | H15: Homogeneous | I15: kgCO2/m2
A16: 2024 | B16: 2024
A17: 2025 | B17: 2025
A18: 2026 | B18: 2026
A19: 2027 | B19: 2027
A20: 2028 | B20: 2028
A21: 2029 | B21: 2029
A22: 2030 | B22: 2030
A23: 2031 | B23: 2031
A24: 2032 | B24: 2032
A25: 2033 | B25: 2033
A26: 2034 | B26: 2034
A27: 2035 | B27: 2035
A28: 2036 | B28: 2036
A29: 2037 | B29: 2037
A30: 2038 | B30: 2038
A31: 2039 | B31: 2039
A32: 2040 | B32: 2040
A33: 2041 | B33: 2041
A34: 2042 | B34: 2042
A35: 2043 | B35: 2043
A36: 2044 | B36: 2044
A37: 2045 | B37: 2045
A38: 2046 | B38: 2046
A39: 2047 | B39: 2047
A40: 2048 | B40: 2048
A41: 2049 | B41: 2049
A42: 2050 | B42: 2050

Sheet Back-end. Calculations (hidden)
A3: Science Based Target Setting - Online Tool
A4: Version 0.1 (Draft)
B11: I. SDA Methodology
C13: 1. Sector: | D13: =VLOOKUP(sector,Sector_type,2) -> Power Generation
C14: 2. Type of Sector: | D14: =VLOOKUP(sector,Sector_type,4) -> Homogeneous
C15: 3. Base Year: | D15: =by -> 0
C16: 4. Target Year: | D16: =ty -> 0
C17: 5. Base year activity: | D17: =A_by -> 0 | F17: =units -> in MWh
C18: 6. Expected target year activity: | D18: =A_ty -> 0 | F18: =units -> in MWh
C19: 7. Scope 1 emissions | D19: =S1_by -> 0 | F19: in tonnes of CO2
C20: 8. Scope 2 emissions | D20: =S2_by -> 0 | F20: in tonnes of CO2
C21: 9. Electricity consumption | D21: =E_by -> 0 | F21: in MWh
D24: Base year | E24: Target year | F24: Forecast assuming a linear company growth
C25: Scope 1 | D25: =by -> 0 | E25: =ty -> 0 | F25: 2020 | G25: 2030 | H25: 2040 | I25: 2050
C26: Sector emissions | D26: =VLOOKUP(sector,S1_SE,by-2010+3) ->  | E26: =VLOOKUP(sector,S1_SE,ty-2010+3) ->  | F26: =VLOOKUP(sector,S1_SE,F25-2010+3) -> 13018.15444 | G26: =VLOOKUP(sector,S1_SE,G25-2010+3) -> 8904.354408 | H26: =VLOOKUP(sector,S1_SE,H25-2010+3) -> 3740.108928 | I26: =VLOOKUP(sector,S1_SE,I25-2010+3) -> 1382.484166
C27: Sector activity | D27: =VLOOKUP(sector,Activity,by-2010+3) ->  | E27: =VLOOKUP(sector,Activity,ty-2010+3) ->  | F27: =VLOOKUP(sector,Activity,F25-2010+3) -> 2.687123005e+10 | G27: =VLOOKUP(sector,Activity,G25-2010+3) -> 3.168309417e+10 | H27: =VLOOKUP(sector,Activity,H25-2010+3) -> 3.64148999e+10 | I27: =VLOOKUP(sector,Activity,I25-2010+3) -> 4.155812911e+10
C28: Sector intensity | D28: =IF($D$14="Homogeneous",VLOOKUP(sector,S1_Intensity,by-2010+3),VLOOKUP(sector,S1_Intensity,by-2010+3)/VLOOKUP(sector,S1_Intensity,by-2010+3)) ->  | E28: =IF($D$14="Homogeneous",VLOOKUP(sector,S1_Intensity,ty-2010+3),VLOOKUP(sector,S1_Intensity,ty-2010+3)/VLOOKUP(sector,S1_Intensity,by-2010+3)) ->  | F28: =IF($D$14="Homogeneous",VLOOKUP(sector,S1_Intensity,F25-2010+3),VLOOKUP(sector,S1_Intensity,F25-2010+3)/VLOOKUP(sector,S1_Intensity,by-2010+3)) -> 0.4844644036 | G28: =IF($D$14="Homogeneous",VLOOKUP(sector,S1_Intensity,G25-2010+3),VLOOKUP(sector,S1_Intensity,G25-2010+3)/VLOOKUP(sector,S1_Intensity,by-2010+3)) -> 0.2810443437 | H28: =IF($D$14="Homogeneous",VLOOKUP(sector,S1_Intensity,H25-2010+3),VLOOKUP(sector,S1_Intensity,H25-2010+3)/VLOOKUP(sector,S1_Intensity,by-2010+3)) -> 0.1027082029 | I28: =IF($D$14="Homogeneous",VLOOKUP(sector,S1_Intensity,I25-2010+3),VLOOKUP(sector,S1_Intensity,I25-2010+3)/VLOOKUP(sector,S1_Intensity,by-2010+3)) -> 0.03326627535
C29: Company emissions | D29: =S1_by -> 0 | E29: =IF($D$14="Heterogeneous",S1_by*E26/$D26,IF(OR(sector=7,sector=8,sector=9),E34*E33/1000000,IF(sector=11,E34*E33/1000,E34*E33))) ->  | F29: =IF($D$14="Heterogeneous",S1_by*F26/$D26,IF(OR(sector=7,sector=8,sector=9),F34*F33/1000000,IF(sector=11,F34*F33/1000,F34*F33))) ->  | G29: =IF($D$14="Heterogeneous",S1_by*G26/$D26,IF(OR(sector=7,sector=8,sector=9),G34*G33/1000000,IF(sector=11,G34*G33/1000,G34*G33))) ->  | H29: =IF($D$14="Heterogeneous",S1_by*H26/$D26,IF(OR(sector=7,sector=8,sector=9),H34*H33/1000000,IF(sector=11,H34*H33/1000,H34*H33))) ->  | I29: =IF($D$14="Heterogeneous",S1_by*I26/$D26,IF(OR(sector=7,sector=8,sector=9),I34*I33/1000000,IF(sector=11,I34*I33/1000,I34*I33))) -> 
C30: d | D30: =$D34-$I28 -> 
C31: m | D31: =IF((D33/$D27)/(D33/D27)<=1,(D33/$D27)/(D33/D27),1) ->  | E31: =IF(($D33/$D27)/(E33/E27)<=1,($D33/$D27)/(E33/E27),1) ->  | F31: =IF(($D33/$D27)/(F33/F27)<=1,($D33/$D27)/(F33/F27),1) ->  | G31: =IF(($D33/$D27)/(G33/G27)<=1,($D33/$D27)/(G33/G27),1) ->  | H31: =IF(($D33/$D27)/(H33/H27)<=1,($D33/$D27)/(H33/H27),1) ->  | I31: =IF(($D33/$D27)/(I33/I27)<=1,($D33/$D27)/(I33/I27),1) -> 
C32: py | D32: =(D28-$I28)/($D28-$I28) ->  | F32: =(F28-$I28)/($D28-$I28) -> 
C33: Company activity | D33: =IF($D$14="Homogeneous",A_by,A_by/A_by) -> 0 | E33: =IF($D$14="Homogeneous",A_ty,A_ty/A_by) -> 0 | F33: =IF($D$14="Homogeneous",(A_ty-A_by)/(ty-by)*(F25-by)+A_by,((A_ty-A_by)/(ty-by)*(F25-by)+A_by)/A_by) ->  | G33: =IF($D$14="Homogeneous",(A_ty-A_by)/(ty-by)*(G25-by)+A_by,((A_ty-A_by)/(ty-by)*(G25-by)+A_by)/A_by) ->  | H33: =IF($D$14="Homogeneous",(A_ty-A_by)/(ty-by)*(H25-by)+A_by,((A_ty-A_by)/(ty-by)*(H25-by)+A_by)/A_by) ->  | I33: =IF($D$14="Homogeneous",(A_ty-A_by)/(ty-by)*(I25-by)+A_by,((A_ty-A_by)/(ty-by)*(I25-by)+A_by)/A_by) -> 
C34: Company intensity | D34: =IF($D$14="Homogeneous",IF(OR(sector=9,sector=7,sector=8),D29/D33*1000000,IF(sector=11,D29/D33*1000,D29/D33)),1) ->  | E34: =(E30*E31*E32)+$I28 ->  | F34: =(F30*F31*F32)+$I28 ->  | G34: =(G30*G31*G32)+$I28 ->  | H34: =(H30*H31*H32)+$I28 ->  | I34: =(I30*I31*I32)+$I28 -> 
D40: Base year | E40: Target year | F40: Forecast assuming a linear company growth
C41: Scope 2 | D41: =by -> 0 | E41: =ty -> 0 | F41: 2020 | G41: 2030 | H41: 2040 | I41: 2050
C42: Sector emissions | D42: =VLOOKUP(sector,S2_SE,by-2010+3) ->  | E42: =VLOOKUP(sector,S2_SE,ty-2010+3) ->  | F42: =VLOOKUP(sector,S2_SE,F41-2010+3) -> 0 | G42: =VLOOKUP(sector,S2_SE,G41-2010+3) -> 0 | H42: =VLOOKUP(sector,S2_SE,H41-2010+3) -> 0 | I42: =VLOOKUP(sector,S2_SE,I41-2010+3) -> 0
C43: Sector activity | D43: =VLOOKUP(sector,Activity,by-2010+3) ->  | E43: =VLOOKUP(sector,Activity,ty-2010+3) ->  | F43: =VLOOKUP(sector,Activity,F41-2010+3) -> 2.687123005e+10 | G43: =VLOOKUP(sector,Activity,G41-2010+3) -> 3.168309417e+10 | H43: =VLOOKUP(sector,Activity,H41-2010+3) -> 3.64148999e+10 | I43: =VLOOKUP(sector,Activity,I41-2010+3) -> 4.155812911e+10
C44: Sector intensity | D44: =IF($D$14="Homogeneous",VLOOKUP(sector,S2_Intensity,by-2010+3),VLOOKUP(sector,S2_Intensity,by-2010+3)/VLOOKUP(sector,S2_Intensity,by-2010+3)) ->  | E44: =IF($D$14="Homogeneous",VLOOKUP(sector,S2_Intensity,ty-2010+3),VLOOKUP(sector,S2_Intensity,ty-2010+3)/VLOOKUP(sector,S2_Intensity,by-2010+3)) ->  | F44: =IF($D$14="Homogeneous",VLOOKUP(sector,S2_Intensity,F41-2010+3),VLOOKUP(sector,S2_Intensity,F41-2010+3)/VLOOKUP(sector,S2_Intensity,by-2010+3)) -> 0 | G44: =IF($D$14="Homogeneous",VLOOKUP(sector,S2_Intensity,G41-2010+3),VLOOKUP(sector,S2_Intensity,G41-2010+3)/VLOOKUP(sector,S2_Intensity,by-2010+3)) -> 0 | H44: =IF($D$14="Homogeneous",VLOOKUP(sector,S2_Intensity,H41-2010+3),VLOOKUP(sector,S2_Intensity,H41-2010+3)/VLOOKUP(sector,S2_Intensity,by-2010+3)) -> 0 | I44: =IF($D$14="Homogeneous",VLOOKUP(sector,S2_Intensity,I41-2010+3),VLOOKUP(sector,S2_Intensity,I41-2010+3)/VLOOKUP(sector,S2_Intensity,by-2010+3)) -> 0
C45: Company emissions | D45: =S2_by -> 0 | E45: =IF($D14="Heterogeneous",S2_by*E42/$D42,IF(OR(sector=7,sector=8,sector=9),E50*E49/1000000,IF(sector=11,E50*E49/1000,E50*E49))) ->  | F45: =IF($D14="Heterogeneous",S2_by*F42/$D42,IF(OR(sector=7,sector=8,sector=9),F50*F49/1000000,IF(sector=11,F50*F49/1000,F50*F49))) ->  | G45: =IF($D14="Heterogeneous",S2_by*G42/$D42,IF(OR(sector=7,sector=8,sector=9),G50*G49/1000000,IF(sector=11,G50*G49/1000,G50*G49))) ->  | H45: =IF($D14="Heterogeneous",S2_by*H42/$D42,IF(OR(sector=7,sector=8,sector=9),H50*H49/1000000,IF(sector=11,H50*H49/1000,H50*H49))) ->  | I45: =IF($D14="Heterogeneous",S2_by*I42/$D42,IF(OR(sector=7,sector=8,sector=9),I50*I49/1000000,IF(sector=11,I50*I49/1000,I50*I49))) -> 
C46: d | D46: =$D50-$I44 -> 
C47: m | D47: =IF((D49/$D43)/(D49/D43)<=1,(D49/$D43)/(D49/D43),1) ->  | E47: =IF(($D49/$D43)/(E49/E43)<=1,($D49/$D43)/(E49/E43),1) ->  | F47: =IF(($D49/$D43)/(F49/F43)<=1,($D49/$D43)/(F49/F43),1) ->  | G47: =IF(($D49/$D43)/(G49/G43)<=1,($D49/$D43)/(G49/G43),1) ->  | H47: =IF(($D49/$D43)/(H49/H43)<=1,($D49/$D43)/(H49/H43),1) ->  | I47: =IF(($D49/$D43)/(I49/I43)<=1,($D49/$D43)/(I49/I43),1) -> 
C48: py | D48: =(D44-$I44)/($D44-$I44) -> 
C49: Company activity | D49: =IF($D$14="Homogeneous",A_by,A_by/A_by) -> 0 | E49: =IF($D$14="Homogeneous",A_ty,A_ty/A_by) -> 0 | F49: =IF($D$14="Homogeneous",(A_ty-A_by)/(ty-by)*(F41-by)+A_by,((A_ty-A_by)/(ty-by)*(F41-by)+A_by)/A_by) ->  | G49: =IF($D$14="Homogeneous",(A_ty-A_by)/(ty-by)*(G41-by)+A_by,((A_ty-A_by)/(ty-by)*(G41-by)+A_by)/A_by) ->  | H49: =IF($D$14="Homogeneous",(A_ty-A_by)/(ty-by)*(H41-by)+A_by,((A_ty-A_by)/(ty-by)*(H41-by)+A_by)/A_by) ->  | I49: =IF($D$14="Homogeneous",(A_ty-A_by)/(ty-by)*(I41-by)+A_by,((A_ty-A_by)/(ty-by)*(I41-by)+A_by)/A_by) -> 
C50: Company intensity | D50: =IF($D$14="Homogeneous",IF(OR(sector=9,sector=7,sector=8),D45/D49*1000000,IF(sector=11,D45/D49*1000,D45/D49)),1) ->  | E50: =(E46*E47*E48)+$I44 ->  | F50: =(F46*F47*F48)+$I44 ->  | G50: =(G46*G47*G48)+$I44 ->  | H50: =(H46*H47*H48)+$I44 ->  | I50: =(I46*I47*I48)+$I44 -> 
D56: Base year | E56: Target year | F56: Forecast assuming a linear company growth
C57: Rank | D57: =IF(D67<>1,RANK(D58,$D$58:$I$58)+COUNTIF($D58:$I58,D58)-1,RANK(D58,$D$58:$I$58)) -> 6 | E57: =IF(E67<>1,RANK(E58,$D$58:$I$58)+COUNTIF($D58:$I58,E58)-1,RANK(E58,$D$58:$I$58)) -> 6 | F57: =RANK(F58,$D$58:$I$58) -> 4 | G57: =RANK(G58,$D$58:$I$58) -> 3 | H57: =RANK(H58,$D$58:$I$58) -> 2 | I57: =RANK(I58,$D$58:$I$58) -> 1
C58: Scope 3. Average annual emissions | D58: =by -> 0 | E58: =ty -> 0 | F58: 2020 | G58: 2030 | H58: 2040 | I58: 2050
C59: Sector activity | D59: =VLOOKUP(sector,Activity,by-2010+3) ->  | E59: =VLOOKUP(sector,Activity,ty-2010+3) ->  | F59: =VLOOKUP(sector,Activity,F58-2010+3) -> 2.687123005e+10 | G59: =VLOOKUP(sector,Activity,G58-2010+3) -> 3.168309417e+10 | H59: =VLOOKUP(sector,Activity,H58-2010+3) -> 3.64148999e+10 | I59: =VLOOKUP(sector,Activity,I58-2010+3) -> 4.155812911e+10
C60: Sector intensity | D60: =HLOOKUP(by,S3_Intensity,2,1) ->  | E60: =HLOOKUP(ty,S3_Intensity,2,1) ->  | F60: =HLOOKUP(F58,S3_Intensity,2,1) -> 92.50275832 | G60: =HLOOKUP(G58,S3_Intensity,2,1) -> 64.65318561 | H60: =HLOOKUP(H58,S3_Intensity,2,1) -> 41.90960539 | I60: =HLOOKUP(I58,S3_Intensity,2,1) -> 26.64324403
C61: d | D61: =$D65-$I60 -> -26.64324403 | E61: -26.64324403 | F61: -26.64324403 | G61: -26.64324403 | H61: -26.64324403 | I61: -26.64324403
C62: m | D62: =IF((A_by/$D59)/(D64/D59)<=1,(A_by/$D59)/(D64/D59),1) -> 
C63: py | D63: =(D60-$I60)/($D60-$I60) -> 
C64: Company activity | D64: =IF($D$14="Homogeneous",A_by,A_by/A_by) -> 0 | E64: =IF($D$14="Homogeneous",A_ty,A_ty/A_by) -> 0 | F64: =IF($D$14="Homogeneous",(A_ty-A_by)/(ty-by)*(F58-by)+A_by,((A_ty-A_by)/(ty-by)*(F58-by)+A_by)/A_by) ->  | G64: =IF($D$14="Homogeneous",(A_ty-A_by)/(ty-by)*(G58-by)+A_by,((A_ty-A_by)/(ty-by)*(G58-by)+A_by)/A_by) ->  | H64: =IF($D$14="Homogeneous",(A_ty-A_by)/(ty-by)*(H58-by)+A_by,((A_ty-A_by)/(ty-by)*(H58-by)+A_by)/A_by) ->  | I64: =IF($D$14="Homogeneous",(A_ty-A_by)/(ty-by)*(I58-by)+A_by,((A_ty-A_by)/(ty-by)*(I58-by)+A_by)/A_by) -> 
C65: Company intensity | D65: =S3_CI_by -> 0 | E65: =(E61*E62*E63)+$I60 ->  | F65: =(F61*F62*F63)+$I60 ->  | G65: =(G61*G62*G63)+$I60 ->  | H65: =(H61*H62*H63)+$I60 ->  | I65: =(I61*I62*I63)+$I60 -> 
D67: =COUNTIF(D58:I58,D58) -> 2 | E67: =COUNTIF($D58:$I58,E58) -> 2 | F67: =COUNTIF($D58:$I58,F58) -> 1 | G67: =COUNTIF($D58:$I58,G58) -> 1 | H67: =COUNTIF($D58:$I58,H58) -> 1 | I67: =COUNTIF($D58:$I58,I58) -> 1
C70: Carbon Intensity Charts
D72: Base year | E72: Target year | F72: Forecast assuming a linear company growth
C73: Scope 3. Average annual emissions | D73: =HLOOKUP(6,$D$57:$I$65,2,0) -> 0 | E73: =HLOOKUP(5,$D$57:$I$65,2,0) ->  | F73: =HLOOKUP(4,$D$57:$I$65,2,0) -> 2020 | G73: =HLOOKUP(3,$D$57:$I$65,2,0) -> 2030 | H73: =HLOOKUP(2,$D$57:$I$65,2,0) -> 2040 | I73: =HLOOKUP(1,$D$57:$I$65,2,0) -> 2050
C74: Sector intensity | D74: =HLOOKUP(6,$D$57:$I$65,4,0) ->  | E74: =HLOOKUP(5,$D$57:$I$65,4,0) ->  | F74: =HLOOKUP(4,$D$57:$I$65,4,0) -> 92.50275832 | G74: =HLOOKUP(3,$D$57:$I$65,4,0) -> 64.65318561 | H74: =HLOOKUP(2,$D$57:$I$65,4,0) -> 41.90960539 | I74: =HLOOKUP(1,$D$57:$I$65,4,0) -> 26.64324403
C75: Company intensity | D75: =HLOOKUP(6,$D$57:$I$65,9,0) -> 0 | E75: =HLOOKUP(5,$D$57:$I$65,9,0) ->  | F75: =HLOOKUP(4,$D$57:$I$65,9,0) ->  | G75: =HLOOKUP(3,$D$57:$I$65,9,0) ->  | H75: =HLOOKUP(2,$D$57:$I$65,9,0) ->  | I75: =HLOOKUP(1,$D$57:$I$65,9,0) -> 
D78: Base year | E78: Target year | F78: Forecast assuming a linear company growth
C79: Scope 1+2 | D79: =by -> 0 | E79: =ty -> 0 | F79: 2020 | G79: 2030 | H79: 2040 | I79: 2050
C80: Sector emissions | D80: =+D26 ->  | E80: =VLOOKUP(sector,S1_SE,ty-2010+3) ->  | F80: =VLOOKUP(sector,S1_SE,F79-2010+3) -> 13018.15444 | G80: =VLOOKUP(sector,S1_SE,G79-2010+3) -> 8904.354408 | H80: =VLOOKUP(sector,S1_SE,H79-2010+3) -> 3740.108928 | I80: =VLOOKUP(sector,S1_SE,I79-2010+3) -> 1382.484166
C81: Sector activity | D81: =VLOOKUP(sector,Activity,by-2010+3) ->  | E81: =VLOOKUP(sector,Activity,ty-2010+3) ->  | F81: =VLOOKUP(sector,Activity,F79-2010+3) -> 2.687123005e+10 | G81: =VLOOKUP(sector,Activity,G79-2010+3) -> 3.168309417e+10 | H81: =VLOOKUP(sector,Activity,H79-2010+3) -> 3.64148999e+10 | I81: =VLOOKUP(sector,Activity,I79-2010+3) -> 4.155812911e+10
C82: Sector intensity | D82: =+D44+D28 ->  | E82: =+E44+E28 ->  | F82: 0.4844644036 | G82: 0.2810443437 | H82: 0.1027082029 | I82: 0.03326627535
C83: Company emissions | D83: =IF(OR(sector=1),D29,D45+D29) -> 0 | E83: =E87*E88 ->  | F83: =IF(OR(sector=1),F29,F45+F29) ->  | G83: =IF(OR(sector=1),G29,G45+G29) ->  | H83: =IF(OR(sector=1),H29,H45+H29) ->  | I83: =IF(OR(sector=1),I29,I45+I29) -> 
C84: d | D84: =$D88-$I82 -> 
C85: m | D85: =IF((D87/$D81)/(D87/D81)<=1,(D87/$D81)/(D87/D81),1) ->  | E85: =IF(($D87/$D81)/(E87/E81)<=1,($D87/$D81)/(E87/E81),1) ->  | F85: =IF(($D87/$D81)/(F87/F81)<=1,($D87/$D81)/(F87/F81),1) ->  | G85: =IF(($D87/$D81)/(G87/G81)<=1,($D87/$D81)/(G87/G81),1) ->  | H85: =IF(($D87/$D81)/(H87/H81)<=1,($D87/$D81)/(H87/H81),1) ->  | I85: =IF(($D87/$D81)/(I87/I81)<=1,($D87/$D81)/(I87/I81),1) -> 
C86: py | D86: =(D82-$I82)/($D82-$I82) ->  | F86: =(F82-$I82)/($D82-$I82) ->  | G86: =(G82-$I82)/($D82-$I82) -> 
C87: Company activity | D87: =IF($D$14="Homogeneous",A_by,A_by/A_by) -> 0 | E87: =IF($D$14="Homogeneous",A_ty,A_ty/A_by) -> 0 | F87: =IF($D$14="Homogeneous",(A_ty-A_by)/(ty-by)*(F79-by)+A_by,((A_ty-A_by)/(ty-by)*(F79-by)+A_by)/A_by) ->  | G87: =IF($D$14="Homogeneous",(A_ty-A_by)/(ty-by)*(G79-by)+A_by,((A_ty-A_by)/(ty-by)*(G79-by)+A_by)/A_by) ->  | H87: =IF($D$14="Homogeneous",(A_ty-A_by)/(ty-by)*(H79-by)+A_by,((A_ty-A_by)/(ty-by)*(H79-by)+A_by)/A_by) ->  | I87: =IF($D$14="Homogeneous",(A_ty-A_by)/(ty-by)*(I79-by)+A_by,((A_ty-A_by)/(ty-by)*(I79-by)+A_by)/A_by) -> 
C88: Company intensity | D88: =IF($D$14="Homogeneous",IF(OR(sector=9,sector=7,sector=8),D83/D87*1000000,IF(sector=11,D83/D87*1000,D83/D87)),1) ->  | E88: =(E84*E85*E86)+$I82 ->  | F88: =(F84*F85*F86)+$I82 ->  | G88: =(G84*G85*G86)+$I82 ->  | H88: =(H84*H85*H86)+$I82 ->  | I88: =(I84*I85*I86)+$I82 -> 

Sheet Back-end. Data (hidden)
A1: Scope 1 Emissions (MT CO2)
A2: Code | B2: Sector | C2: 2010 | D2: 2011 | E2: 2012 | F2: 2013 | G2: 2014 | H2: 2015 | I2: 2016 | J2: 2017 | K2: 2018 | L2: 2019 | M2: 2020 | N2: 2021 | O2: 2022 | P2: 2023 | Q2: 2024 | R2: 2025 | S2: 2026 | T2: 2027 | U2: 2028 | V2: 2029 | W2: 2030 | X2: 2031 | Y2: 2032 | Z2: 2033 | AA2: 2034 | AB2: 2035 | AC2: 2036 | AD2: 2037 | AE2: 2038 | AF2: 2039 | AG2: 2040 | AH2: 2041 | AI2: 2042 | AJ2: 2043 | AK2: 2044 | AL2: 2045 | AM2: 2046 | AN2: 2047 | AO2: 2048 | AP2: 2049 | AQ2: 2050
A3: 1 | B3: Power Generation | C3: 13491.47966 | D3: 13067.91458 | E3: 13358.54117 | F3: 13655.57741 | G3: 13564.51699 | H3: 13473.45656 | I3: 13382.39614 | J3: 13291.33572 | K3: 13200.27529 | L3: 13109.21487 | M3: 13018.15444 | N3: 12675.44276 | O3: 12332.73108 | P3: 11990.0194 | Q3: 11647.30772 | R3: 11304.59603 | S3: 10824.54771 | T3: 10344.49938 | U3: 9864.451059 | V3: 9384.402733 | W3: 8904.354408 | X3: 8372.786746 | Y3: 7841.219084 | Z3: 7309.651422 | AA3: 6778.083761 | AB3: 6246.516099 | AC3: 5745.234665 | AD3: 5243.95323 | AE3: 4742.671796 | AF3: 4241.390362 | AG3: 3740.108928 | AH3: 3413.816256 | AI3: 3087.523583 | AJ3: 2761.230911 | AK3: 2434.938239 | AL3: 2108.645567 | AM3: 1963.413287 | AN3: 1818.181006 | AO3: 1672.948726 | AP3: 1527.716446 | AQ3: 1382.484166 | AR3: ETP2016_scenario_summary
A4: 2 | B4: Iron & Steel Industry | C4: 2791.159323 | D4: 2990.524971 | E4: 2551.715376 | F4: 2817.34318 | G4: 2821.047094 | H4: 2824.751007 | I4: 2828.454921 | J4: 2832.158834 | K4: 2835.862747 | L4: 2839.566661 | M4: 2843.270574 | N4: 2795.446321 | O4: 2747.622068 | P4: 2699.797814 | Q4: 2651.973561 | R4: 2604.149308 | S4: 2511.609155 | T4: 2419.069003 | U4: 2326.528851 | V4: 2233.988698 | W4: 2141.448546 | X4: 2088.801316 | Y4: 2036.154086 | Z4: 1983.506856 | AA4: 1930.859625 | AB4: 1878.212395 | AC4: 1823.702553 | AD4: 1769.19271 | AE4: 1714.682868 | AF4: 1660.173025 | AG4: 1605.663183 | AH4: 1570.627765 | AI4: 1535.592347 | AJ4: 1500.556929 | AK4: 1465.521511 | AL4: 1430.486093 | AM4: 1406.563109 | AN4: 1382.640125 | AO4: 1358.717141 | AP4: 1334.794157 | AQ4: 1310.871174 | AR4: ETP2016_industry_summary
A5: 3 | B5: Cement | C5: 2182.624495 | D5: 2162.643843 | E5: 2287.163557 | F5: 2228.532144 | G5: 2249.476502 | H5: 2270.420859 | I5: 2291.365216 | J5: 2312.309573 | K5: 2333.25393 | L5: 2354.198288 | M5: 2375.142645 | N5: 2354.696758 | O5: 2334.250871 | P5: 2313.804985 | Q5: 2293.359098 | R5: 2272.913211 | S5: 2258.013286 | T5: 2243.113361 | U5: 2228.213436 | V5: 2213.313511 | W5: 2198.413586 | X5: 2176.009251 | Y5: 2153.604916 | Z5: 2131.200581 | AA5: 2108.796246 | AB5: 2086.391911 | AC5: 2068.070244 | AD5: 2049.748578 | AE5: 2031.426911 | AF5: 2013.105245 | AG5: 1994.783578 | AH5: 1970.689343 | AI5: 1946.595107 | AJ5: 1922.500872 | AK5: 1898.406636 | AL5: 1874.312401 | AM5: 1836.882475 | AN5: 1799.452549 | AO5: 1762.022623 | AP5: 1724.592697 | AQ5: 1687.162771 | AR5: ETP2016_industry_summary
B6: Chemical and Petrochemical Industry | C6: 965.3123052 | D6: 1272.565534 | E6: 1215.591984 | F6: 1224.576482 | G6: 1372.146999 | H6: 1519.717515 | I6: 1667.288032 | J6: 1814.858549 | K6: 1962.429066 | L6: 2109.999583 | M6: 2257.5701 | N6: 2267.893481 | O6: 2278.216861 | P6: 2288.540242 | Q6: 2298.863623 | R6: 2309.187004 | S6: 2295.554044 | T6: 2281.921084 | U6: 2268.288125 | V6: 2254.655165 | W6: 2241.022205 | X6: 2232.0747 | Y6: 2223.127196 | Z6: 2214.179692 | AA6: 2205.232187 | AB6: 2196.284683 | AC6: 2186.424388 | AD6: 2176.564093 | AE6: 2166.703798 | AF6: 2156.843503 | AG6: 2146.983208 | AH6: 2142.693528 | AI6: 2138.403847 | AJ6: 2134.114167 | AK6: 2129.824486 | AL6: 2125.534806 | AM6: 2120.98254 | AN6: 2116.430274 | AO6: 2111.878009 | AP6: 2107.325743 | AQ6: 2102.773477 | AR6: ETP2016_industry_summary
A7: 4 | B7: Aluminium | C7: 162.1549985 | D7: 150.3396675 | E7: 164.7857442 | F7: 243.5184813 | G7: 253.0797554 | H7: 262.6410294 | I7: 272.2023035 | J7: 281.7635775 | K7: 291.3248516 | L7: 300.8861257 | M7: 310.4473997 | N7: 319.3743721 | O7: 328.3013445 | P7: 337.2283168 | Q7: 346.1552892 | R7: 355.0822616 | S7: 345.8648247 | T7: 336.6473879 | U7: 327.4299511 | V7: 318.2125142 | W7: 308.9950774 | X7: 304.4965812 | Y7: 299.998085 | Z7: 295.4995888 | AA7: 291.0010926 | AB7: 286.5025964 | AC7: 290.1174965 | AD7: 293.7323967 | AE7: 297.3472968 | AF7: 300.9621969 | AG7: 304.577097 | AH7: 301.4955973 | AI7: 298.4140977 | AJ7: 295.332598 | AK7: 292.2510984 | AL7: 289.1695988 | AM7: 283.8981143 | AN7: 278.6266298 | AO7: 273.3551454 | AP7: 268.0836609 | AQ7: 262.8121765 | AR7: ETP2016_industry_summary
A8: 5 | B8: Pulp & Paper | C8: 238.5411037 | D8: 237.3516486 | E8: 237.3516486 | F8: 220.6621177 | G8: 217.6406908 | H8: 214.619264 | I8: 211.5978372 | J8: 208.5764104 | K8: 205.5549836 | L8: 202.5335568 | M8: 199.51213 | N8: 195.9120778 | O8: 192.3120256 | P8: 188.7119734 | Q8: 185.1119212 | R8: 181.511869 | S8: 178.2637753 | T8: 175.0156815 | U8: 171.7675877 | V8: 168.519494 | W8: 165.2714002 | X8: 161.7650087 | Y8: 158.2586172 | Z8: 154.7522257 | AA8: 151.2458342 | AB8: 147.7394427 | AC8: 144.9429833 | AD8: 142.1465239 | AE8: 139.3500645 | AF8: 136.5536051 | AG8: 133.7571457 | AH8: 131.7168578 | AI8: 129.6765699 | AJ8: 127.636282 | AK8: 125.5959941 | AL8: 123.5557063 | AM8: 121.7560296 | AN8: 119.9563529 | AO8: 118.1566762 | AP8: 116.3569995 | AQ8: 114.5573228 | AR8: ETP2016_industry_summary
B9: Manufacture of light-road automotor vehicles | C9: 2103.784193 | D9: 2084.430541 | E9: 1932.864509 | F9: 2232.449767 | G9: 2216.16198 | H9: 2199.874193 | I9: 2183.586406 | J9: 2167.298619 | K9: 2151.010832 | L9: 2134.723045 | M9: 2118.435258 | N9: 2095.446265 | O9: 2072.457272 | P9: 2049.468279 | Q9: 2026.479286 | R9: 2003.490293 | S9: 1974.331381 | T9: 1945.172469 | U9: 1916.013557 | V9: 1886.854645 | W9: 1857.695733 | X9: 1839.416339 | Y9: 1821.136944 | Z9: 1802.85755 | AA9: 1784.578155 | AB9: 1766.298761 | AC9: 1737.327078 | AD9: 1708.355396 | AE9: 1679.383713 | AF9: 1650.412031 | AG9: 1621.440348 | AH9: 1584.596197 | AI9: 1547.752046 | AJ9: 1510.907895 | AK9: 1474.063744 | AL9: 1437.219593 | AM9: 1398.302795 | AN9: 1359.385996 | AO9: 1320.469198 | AP9: 1281.552399 | AQ9: 1242.635601 | AR9: ETP2016_scenario_summary&ETP2015_industry_summary
A10: 6 | B10: Other Industry | C10: 2103.784193 | D10: 2084.430541 | E10: 1932.864509 | F10: 2232.449767 | G10: 2216.16198 | H10: 2199.874193 | I10: 2183.586406 | J10: 2167.298619 | K10: 2151.010832 | L10: 2134.723045 | M10: 2118.435258 | N10: 2095.446265 | O10: 2072.457272 | P10: 2049.468279 | Q10: 2026.479286 | R10: 2003.490293 | S10: 1974.331381 | T10: 1945.172469 | U10: 1916.013557 | V10: 1886.854645 | W10: 1857.695733 | X10: 1839.416339 | Y10: 1821.136944 | Z10: 1802.85755 | AA10: 1784.578155 | AB10: 1766.298761 | AC10: 1737.327078 | AD10: 1708.355396 | AE10: 1679.383713 | AF10: 1650.412031 | AG10: 1621.440348 | AH10: 1584.596197 | AI10: 1547.752046 | AJ10: 1510.907895 | AK10: 1474.063744 | AL10: 1437.219593 | AM10: 1398.302795 | AN10: 1359.385996 | AO10: 1320.469198 | AP10: 1281.552399 | AQ10: 1242.635601 | AR10: ETP2016_scenario_summary&ETP2015_industry_summary | AS10: See notes in cells D & E.
B11: Passenger transport - Air | C11: 885.3888495 | D11: 910.4525572 | E11: 935.5162649 | F11: 960.5799726 | G11: 985.6436803 | H11: 1010.707388 | I11: 1007.869575 | J11: 1005.031762 | K11: 1002.193949 | L11: 999.3561362 | M11: 996.5183233 | N11: 989.185339 | O11: 981.8523548 | P11: 974.5193705 | Q11: 967.1863862 | R11: 959.8534019 | S11: 946.4891812 | T11: 933.1249606 | U11: 919.7607399 | V11: 906.3965192 | W11: 893.0322985 | X11: 870.7021586 | Y11: 848.3720186 | Z11: 826.0418787 | AA11: 803.7117387 | AB11: 781.3815988 | AC11: 759.4635778 | AD11: 737.5455567 | AE11: 715.6275357 | AF11: 693.7095147 | AG11: 671.7914937 | AH11: 649.090374 | AI11: 626.3892543 | AJ11: 603.6881346 | AK11: 580.9870149 | AL11: 558.2858952 | AM11: 533.0143482 | AN11: 507.7428011 | AO11: 482.4712541 | AP11: 457.1997071 | AQ11: 431.9281601 | AR11: ETP2016_transport_summary /Tank to Wheel emissions | AY11: MoMo= Mobility models
A12: 7 | B12: Passenger transport - Light Road | C12: 3409.332593 | D12: 3469.120426 | E12: 3528.908259 | F12: 3588.696092 | G12: 3648.483925 | H12: 3708.271758 | I12: 3708.380631 | J12: 3708.489504 | K12: 3708.598378 | L12: 3708.707251 | M12: 3708.816125 | N12: 3694.091661 | O12: 3679.367198 | P12: 3664.642734 | Q12: 3649.918271 | R12: 3635.193807 | S12: 3584.558124 | T12: 3533.922441 | U12: 3483.286758 | V12: 3432.651074 | W12: 3382.015391 | X12: 3309.538245 | Y12: 3237.061098 | Z12: 3164.583952 | AA12: 3092.106805 | AB12: 3019.629659 | AC12: 2934.20372 | AD12: 2848.777781 | AE12: 2763.351843 | AF12: 2677.925904 | AG12: 2592.499965 | AH12: 2507.067038 | AI12: 2421.634112 | AJ12: 2336.201185 | AK12: 2250.768258 | AL12: 2165.335331 | AM12: 2093.333893 | AN12: 2021.332455 | AO12: 1949.331017 | AP12: 1877.329579 | AQ12: 1805.328141 | AR12: ETP2016_transport_summary / Tank to Wheel emissions | AY12: Only Ecofys saw these Excel Spreadsheets that can be acquired upon request to IEA.
A13: 8 | B13: Passenger transport - Heavy Road | C13: 432.6275821 | D13: 429.6660528 | E13: 426.7045234 | F13: 423.7429941 | G13: 420.7814647 | H13: 417.8199353 | I13: 415.8289223 | J13: 413.8379093 | K13: 411.8468963 | L13: 409.8558833 | M13: 407.8648703 | N13: 407.7846984 | O13: 407.7045266 | P13: 407.6243547 | Q13: 407.5441829 | R13: 407.464011 | S13: 407.0359966 | T13: 406.6079821 | U13: 406.1799677 | V13: 405.7519532 | W13: 405.3239388 | X13: 403.2925145 | Y13: 401.2610902 | Z13: 399.2296659 | AA13: 397.1982416 | AB13: 395.1668173 | AC13: 391.4469343 | AD13: 387.7270512 | AE13: 384.0071682 | AF13: 380.2872852 | AG13: 376.5674021 | AH13: 372.4951572 | AI13: 368.4229123 | AJ13: 364.3506674 | AK13: 360.2784224 | AL13: 356.2061775 | AM13: 351.8640782 | AN13: 347.5219789 | AO13: 343.1798796 | AP13: 338.8377803 | AQ13: 334.495681 | AR13: ETP2016_transport_summary / Tank to Wheel emissions | AY13: We need to understand why we used this instead of the numbers in the ETP Transport.
A14: 9 | B14: Passenger transport - Rail | C14: 73.95133082 | D14: 74.02679064 | E14: 74.10225046 | F14: 74.17771028 | G14: 74.2531701 | H14: 74.32862992 | I14: 73.28716387 | J14: 72.24569782 | K14: 71.20423177 | L14: 70.16276572 | M14: 69.12129966 | N14: 67.049047 | O14: 64.97679434 | P14: 62.90454168 | Q14: 60.83228902 | R14: 58.76003636 | S14: 56.60636282 | T14: 54.45268927 | U14: 52.29901573 | V14: 50.14534218 | W14: 47.99166863 | X14: 45.31658424 | Y14: 42.64149984 | Z14: 39.96641544 | AA14: 37.29133105 | AB14: 34.61624665 | AC14: 32.11556058 | AD14: 29.61487452 | AE14: 27.11418845 | AF14: 24.61350238 | AG14: 22.11281631 | AH14: 20.73673065 | AI14: 19.36064498 | AJ14: 17.98455932 | AK14: 16.60847365 | AL14: 15.23238798 | AM14: 14.45585086 | AN14: 13.67931374 | AO14: 12.90277662 | AP14: 12.1262395 | AQ14: 11.34970238 | AR14: ETP2016_transport_summary / Tank to Wheel emissions
A15: 10 | B15: Other transport | C15: 2901.579006 | D15: 3191.48211 | E15: 3380.547051 | F15: 3720.869235 | G15: 3665.123189 | H15: 3609.377144 | I15: 3641.357988 | J15: 3673.338832 | K15: 3705.319676 | L15: 3737.300519 | M15: 3769.281363 | N15: 3777.478288 | O15: 3785.675212 | P15: 3793.872136 | Q15: 3802.069061 | R15: 3810.265985 | S15: 3820.829792 | T15: 3831.393598 | U15: 3841.957405 | V15: 3852.521212 | W15: 3863.085019 | X15: 3870.340645 | Y15: 3877.596272 | Z15: 3884.851898 | AA15: 3892.107524 | AB15: 3899.363151 | AC15: 3882.263379 | AD15: 3865.163607 | AE15: 3848.063835 | AF15: 3830.964063 | AG15: 3813.864291 | AH15: 3785.391911 | AI15: 3756.919532 | AJ15: 3728.447153 | AK15: 3699.974773 | AL15: 3671.502394 | AM15: 3636.925434 | AN15: 3602.348475 | AO15: 3567.771515 | AP15: 3533.194556 | AQ15: 3498.617596 | AR15: ETP2016_transport_summary
A16: 11 | B16: Services / Commercial Buildings | C16: 901.8000808 | D16: 876.4017607 | E16: 837.1377494 | F16: 948.2828242 | G16: 937.933874 | H16: 927.5849239 | I16: 917.2359737 | J16: 906.8870236 | K16: 896.5380734 | L16: 886.1891233 | M16: 875.8401731 | N16: 859.3630573 | O16: 842.8859414 | P16: 826.4088256 | Q16: 809.9317097 | R16: 793.4545939 | S16: 774.9155847 | T16: 756.3765755 | U16: 737.8375662 | V16: 719.298557 | W16: 700.7595478 | X16: 690.2510804 | Y16: 679.7426131 | Z16: 669.2341458 | AA16: 658.7256784 | AB16: 648.2172111 | AC16: 636.4231348 | AD16: 624.6290586 | AE16: 612.8349824 | AF16: 601.0409062 | AG16: 589.2468299 | AH16: 576.0045566 | AI16: 562.7622833 | AJ16: 549.52001 | AK16: 536.2777367 | AL16: 523.0354634 | AM16: 508.6607468 | AN16: 494.2860302 | AO16: 479.9113136 | AP16: 465.536597 | AQ16: 451.1618804 | AR16: ETP2016_buildings_summary
B17: Total Industry | C17: =+SUM(C3:C16)-C9 -> 30539.73552 | D17: 30916.92048 | E17: 30930.93009 | F17: 32339.00841 | G17: 32426.28931 | H17: 32513.57021 | I17: 32600.85111 | J17: 32688.13201 | K17: 32775.41291 | L17: 32862.6938 | M17: 32949.9747 | N17: 32499.16413 | O17: 32048.35355 | P17: 31597.54297 | Q17: 31146.73239 | R17: 30695.92182 | S17: 29978.61922 | T17: 29261.31662 | U17: 28544.01402 | V17: 27826.71142 | W17: 27109.40882 | X17: 26364.79117 | Y17: 25620.17352 | Z17: 24875.55587 | AA17: 24130.93822 | AB17: 23386.32057 | AC17: 22631.73571 | AD17: 21877.15086 | AE17: 21122.566 | AF17: 20367.98114 | AG17: 19613.39629 | AH17: 19026.42131 | AI17: 18439.44634 | AJ17: 17852.47136 | AK17: 17265.49639 | AL17: 16678.52141 | AM17: 16270.0527 | AN17: 15861.58399 | AO17: 15453.11527 | AP17: 15044.64656 | AQ17: 14636.17785 | AR17: ETP2016_scenario_summary
A18: Sectoral Activity - Adjusted Units
A19: Code | B19: Sector | C19: 2010 | D19: 2011 | E19: 2012 | F19: 2013 | G19: 2014 | H19: 2015 | I19: 2016 | J19: 2017 | K19: 2018 | L19: 2019 | M19: 2020 | N19: 2021 | O19: 2022 | P19: 2023 | Q19: 2024 | R19: 2025 | S19: 2026 | T19: 2027 | U19: 2028 | V19: 2029 | W19: 2030 | X19: 2031 | Y19: 2032 | Z19: 2033 | AA19: 2034 | AB19: 2035 | AC19: 2036 | AD19: 2037 | AE19: 2038 | AF19: 2039 | AG19: 2040 | AH19: 2041 | AI19: 2042 | AJ19: 2043 | AK19: 2044 | AL19: 2045 | AM19: 2046 | AN19: 2047 | AO19: 2048 | AP19: 2049 | AQ19: 2050 | AR19: Unit
A20: 1 | B20: Power Generation | C20: =C46*1000000 -> 2.153592717e+10 | D20: =D46*1000000 -> 2.212997466e+10 | E20: 2.266807807e+10 | F20: 2.32900976e+10 | G20: 2.380168795e+10 | H20: 2.43132783e+10 | I20: 2.482486865e+10 | J20: 2.5336459e+10 | K20: 2.584804935e+10 | L20: 2.63596397e+10 | M20: 2.687123005e+10 | N20: 2.733858761e+10 | O20: 2.780594517e+10 | P20: 2.827330273e+10 | Q20: 2.874066029e+10 | R20: 2.920801785e+10 | S20: 2.970303311e+10 | T20: 3.019804838e+10 | U20: 3.069306364e+10 | V20: 3.118807891e+10 | W20: 3.168309417e+10 | X20: 3.216559724e+10 | Y20: 3.264810031e+10 | Z20: 3.313060338e+10 | AA20: 3.361310645e+10 | AB20: 3.409560952e+10 | AC20: 3.455946759e+10 | AD20: 3.502332567e+10 | AE20: 3.548718375e+10 | AF20: 3.595104182e+10 | AG20: 3.64148999e+10 | AH20: 3.692934635e+10 | AI20: 3.74437928e+10 | AJ20: 3.795823924e+10 | AK20: 3.847268569e+10 | AL20: 3.898713214e+10 | AM20: 3.950133154e+10 | AN20: 4.001553093e+10 | AO20: 4.052973033e+10 | AP20: 4.104392972e+10 | AQ20: 4.155812911e+10 | AR20: MWh
A21: 2 | B21: Iron & Steel Industry | C21: =C47 -> 1440.199567 | D21: =D47 -> 1518.3 | E21: 1546.006701 | F21: 1649.304 | G21: 1663.706839 | H21: 1678.109679 | I21: 1692.512518 | J21: 1706.915357 | K21: 1721.318197 | L21: 1735.721036 | M21: 1750.123875 | N21: 1774.281602 | O21: 1798.439329 | P21: 1822.597056 | Q21: 1846.754782 | R21: 1870.912509 | S21: 1894.576001 | T21: 1918.239493 | U21: 1941.902985 | V21: 1965.566477 | W21: 1989.229969 | X21: 2009.890811 | Y21: 2030.551653 | Z21: 2051.212495 | AA21: 2071.873337 | AB21: 2092.534179 | AC21: 2108.839203 | AD21: 2125.144228 | AE21: 2141.449252 | AF21: 2157.754276 | AG21: 2174.059301 | AH21: 2183.087194 | AI21: 2192.115087 | AJ21: 2201.14298 | AK21: 2210.170873 | AL21: 2219.198767 | AM21: 2222.256746 | AN21: 2225.314725 | AO21: 2228.372705 | AP21: 2231.430684 | AQ21: 2234.488664 | AR21: M tonnes crude steel
A22: 3 | B22: Cement | C22: =C48 -> 3409.19979 | D22: =D48 -> 3635.173041 | E22: 3835.579208 | F22: 4074.336 | G22: 4109.163733 | H22: 4143.991467 | I22: 4178.8192 | J22: 4213.646933 | K22: 4248.474666 | L22: 4283.3024 | M22: 4318.130133 | N22: 4325.994715 | O22: 4333.859297 | P22: 4341.723879 | Q22: 4349.588461 | R22: 4357.453043 | S22: 4363.353251 | T22: 4369.253459 | U22: 4375.153667 | V22: 4381.053875 | W22: 4386.954083 | X22: 4388.401888 | Y22: 4389.849692 | Z22: 4391.297497 | AA22: 4392.745302 | AB22: 4394.193107 | AC22: 4419.433656 | AD22: 4444.674206 | AE22: 4469.914756 | AF22: 4495.155306 | AG22: 4520.395856 | AH22: 4530.950496 | AI22: 4541.505137 | AJ22: 4552.059777 | AK22: 4562.614418 | AL22: 4573.169058 | AM22: 4571.66645 | AN22: 4570.163842 | AO22: 4568.661234 | AP22: 4567.158626 | AQ22: 4565.656018 | AR22: M tonnes cement
B23: Chemical and Petrochemical Industry | C23: =C49 -> 1.050163993 | D23: =D49 -> 1.071795282 | E23: 1.120274551 | F23: 1.128481851 | G23: 1.181504304 | H23: 1.234526758 | I23: 1.287549211 | J23: 1.340571664 | K23: 1.393594118 | L23: 1.446616571 | M23: 1.499639024 | N23: 1.546733449 | O23: 1.593827874 | P23: 1.640922299 | Q23: 1.688016723 | R23: 1.735111148 | S23: 1.765228234 | T23: 1.79534532 | U23: 1.825462405 | V23: 1.855579491 | W23: 1.885696577 | X23: 1.908554905 | Y23: 1.931413234 | Z23: 1.954271563 | AA23: 1.977129892 | AB23: 1.999988221 | AC23: 2.021213848 | AD23: 2.042439475 | AE23: 2.063665102 | AF23: 2.084890728 | AG23: 2.106116355 | AH23: 2.125128954 | AI23: 2.144141553 | AJ23: 2.163154153 | AK23: 2.182166752 | AL23: 2.201179351 | AM23: 2.217227723 | AN23: 2.233276095 | AO23: 2.249324467 | AP23: 2.265372839 | AQ23: 2.281421211 | AR23: Index (vs 2010 activity)
A24: 4 | B24: Aluminium | C24: =C50 -> 77.72103846 | D24: =D50 -> 92.66182481 | E24: 98.18382618 | F24: 117.834005 | G24: 122.6527466 | H24: 127.4714881 | I24: 132.2902297 | J24: 137.1089712 | K24: 141.9277128 | L24: 146.7464543 | M24: 151.5651959 | N24: 155.7550392 | O24: 159.9448826 | P24: 164.134726 | Q24: 168.3245693 | R24: 172.5144127 | S24: 177.098806 | T24: 181.6831992 | U24: 186.2675925 | V24: 190.8519858 | W24: 195.436379 | X24: 199.4568628 | Y24: 203.4773466 | Z24: 207.4978304 | AA24: 211.5183142 | AB24: 215.5387979 | AC24: 218.001685 | AD24: 220.4645721 | AE24: 222.9274592 | AF24: 225.3903463 | AG24: 227.8532334 | AH24: 229.4456161 | AI24: 231.0379988 | AJ24: 232.6303814 | AK24: 234.2227641 | AL24: 235.8151467 | AM24: 236.8079863 | AN24: 237.8008259 | AO24: 238.7936655 | AP24: 239.786505 | AQ24: 240.7793446 | AR24: M tonnes aluminium
A25: 5 | B25: Pulp & Paper | C25: =C51 -> 407.7795243 | D25: =D51 -> 403.101871 | E25: 403.101871 | F25: 396.085391 | G25: 402.7809015 | H25: 409.4764119 | I25: 416.1719224 | J25: 422.8674328 | K25: 429.5629433 | L25: 436.2584538 | M25: 442.9539642 | N25: 449.2400999 | O25: 455.5262355 | P25: 461.8123712 | Q25: 468.0985069 | R25: 474.3846426 | S25: 480.6908775 | T25: 486.9971125 | U25: 493.3033475 | V25: 499.6095825 | W25: 505.9158175 | X25: 512.1907651 | Y25: 518.4657127 | Z25: 524.7406603 | AA25: 531.0156079 | AB25: 537.2905556 | AC25: 543.1115698 | AD25: 548.932584 | AE25: 554.7535982 | AF25: 560.5746125 | AG25: 566.3956267 | AH25: 575.3362033 | AI25: 584.2767799 | AJ25: 593.2173564 | AK25: 602.157933 | AL25: 611.0985096 | AM25: 611.0985096 | AN25: 611.0985096 | AO25: 611.0985096 | AP25: 611.0985096 | AQ25: 611.0985096 | AR25: M tonnes paper and cardboard
B26: Manufacture of light-road automotor vehicles | C26: =C36 -> 1 | D26: =D36 -> 1.037 | E26: 1.075369 | F26: 1.115157653 | G26: 1.156418486 | H26: 1.19920597 | I26: 1.243576591 | J26: 1.289588925 | K26: 1.337303715 | L26: 1.386783953 | M26: 1.438094959 | N26: 1.492742567 | O26: 1.549466785 | P26: 1.608346523 | Q26: 1.669463691 | R26: 1.732903311 | S26: 1.798753637 | T26: 1.867106275 | U26: 1.938056313 | V26: 2.011702453 | W26: 2.088147146 | X26: 2.146615266 | Y26: 2.206720494 | Z26: 2.268508668 | AA26: 2.33202691 | AB26: 2.397323664 | AC26: 2.464448726 | AD26: 2.533453291 | AE26: 2.604389983 | AF26: 2.677312902 | AG26: 2.752277664 | AH26: 2.829341438 | AI26: 2.908562999 | AJ26: 2.990002763 | AK26: 3.07372284 | AL26: 3.159787079 | AM26: 3.248261118 | AN26: 3.339212429 | AO26: 3.432710377 | AP26: 3.528826268 | AQ26: 3.627633403 | AR26: Index
A27: 6 | B27: Other Industry | C27: =C36 -> 1 | D27: =D36 -> 1.037 | E27: 1.075369 | F27: 1.115157653 | G27: 1.156418486 | H27: 1.19920597 | I27: 1.243576591 | J27: 1.289588925 | K27: 1.337303715 | L27: 1.386783953 | M27: 1.438094959 | N27: 1.492742567 | O27: 1.549466785 | P27: 1.608346523 | Q27: 1.669463691 | R27: 1.732903311 | S27: 1.798753637 | T27: 1.867106275 | U27: 1.938056313 | V27: 2.011702453 | W27: 2.088147146 | X27: 2.146615266 | Y27: 2.206720494 | Z27: 2.268508668 | AA27: 2.33202691 | AB27: 2.397323664 | AC27: 2.464448726 | AD27: 2.533453291 | AE27: 2.604389983 | AF27: 2.677312902 | AG27: 2.752277664 | AH27: 2.829341438 | AI27: 2.908562999 | AJ27: 2.990002763 | AK27: 3.07372284 | AL27: 3.159787079 | AM27: 3.248261118 | AN27: 3.339212429 | AO27: 3.432710377 | AP27: 3.528826268 | AQ27: 3.627633403 | AR27: Index
B28: Passenger transport - Air | C28: =C54*10^9 -> 4.729108779e+12 | D28: =D54*10^9 -> 5.022251508e+12 | E28: 5.315394238e+12 | F28: 5.608536967e+12 | G28: 5.901679696e+12 | H28: 6.194822425e+12 | I28: 6.39944166e+12 | J28: 6.604060896e+12 | K28: 6.808680131e+12 | L28: 7.013299366e+12 | M28: 7.217918601e+12 | N28: 7.429724594e+12 | O28: 7.641530586e+12 | P28: 7.853336578e+12 | Q28: 8.06514257e+12 | R28: 8.276948562e+12 | S28: 8.494692789e+12 | T28: 8.712437016e+12 | U28: 8.930181242e+12 | V28: 9.147925469e+12 | W28: 9.365669696e+12 | X28: 9.567558128e+12 | Y28: 9.76944656e+12 | Z28: 9.971334992e+12 | AA28: 1.017322342e+13 | AB28: 1.037511186e+13 | AC28: 1.057062621e+13 | AD28: 1.076614057e+13 | AE28: 1.096165493e+13 | AF28: 1.115716928e+13 | AG28: 1.135268364e+13 | AH28: 1.154986752e+13 | AI28: 1.17470514e+13 | AJ28: 1.194423528e+13 | AK28: 1.214141916e+13 | AL28: 1.233860303e+13 | AM28: 1.25302901e+13 | AN28: 1.272197717e+13 | AO28: 1.291366424e+13 | AP28: 1.310535131e+13 | AQ28: 1.329703838e+13 | AR28: revenue passenger kilometres
A29: 7 | B29: Passenger transport - Light Road | C29: =C55*10^9 -> 2.321411342e+13 | D29: =D55*10^9 -> 2.423976547e+13 | E29: 2.526541753e+13 | F29: 2.629106959e+13 | G29: 2.731672164e+13 | H29: 2.83423737e+13 | I29: 2.912529868e+13 | J29: 2.990822365e+13 | K29: 3.069114863e+13 | L29: 3.14740736e+13 | M29: 3.225699858e+13 | N29: 3.306875106e+13 | O29: 3.388050354e+13 | P29: 3.469225602e+13 | Q29: 3.55040085e+13 | R29: 3.631576098e+13 | S29: 3.696338854e+13 | T29: 3.761101609e+13 | U29: 3.825864365e+13 | V29: 3.890627121e+13 | W29: 3.955389877e+13 | X29: 4.010572729e+13 | Y29: 4.065755581e+13 | Z29: 4.120938434e+13 | AA29: 4.176121286e+13 | AB29: 4.231304138e+13 | AC29: 4.275031754e+13 | AD29: 4.318759369e+13 | AE29: 4.362486985e+13 | AF29: 4.406214601e+13 | AG29: 4.449942216e+13 | AH29: 4.490514783e+13 | AI29: 4.53108735e+13 | AJ29: 4.571659917e+13 | AK29: 4.612232483e+13 | AL29: 4.65280505e+13 | AM29: 4.686700569e+13 | AN29: 4.720596088e+13 | AO29: 4.754491607e+13 | AP29: 4.788387126e+13 | AQ29: 4.822282644e+13 | AR29: passenger kilometres
A30: 8 | B30: Passenger transport - Heavy Road | C30: =C56*10^9 -> 1.278101094e+13 | D30: =D56*10^9 -> 1.311161577e+13 | E30: 1.344222059e+13 | F30: 1.377282541e+13 | G30: 1.410343023e+13 | H30: 1.443403505e+13 | I30: 1.472135076e+13 | J30: 1.500866647e+13 | K30: 1.529598218e+13 | L30: 1.558329789e+13 | M30: 1.58706136e+13 | N30: 1.620532642e+13 | O30: 1.654003924e+13 | P30: 1.687475206e+13 | Q30: 1.720946488e+13 | R30: 1.75441777e+13 | S30: 1.785380173e+13 | T30: 1.816342576e+13 | U30: 1.847304979e+13 | V30: 1.878267382e+13 | W30: 1.909229785e+13 | X30: 1.937476204e+13 | Y30: 1.965722622e+13 | Z30: 1.993969041e+13 | AA30: 2.02221546e+13 | AB30: 2.050461878e+13 | AC30: 2.07870382e+13 | AD30: 2.106945761e+13 | AE30: 2.135187702e+13 | AF30: 2.163429643e+13 | AG30: 2.191671585e+13 | AH30: 2.221546928e+13 | AI30: 2.251422272e+13 | AJ30: 2.281297616e+13 | AK30: 2.31117296e+13 | AL30: 2.341048303e+13 | AM30: 2.372590266e+13 | AN30: 2.404132229e+13 | AO30: 2.435674191e+13 | AP30: 2.467216154e+13 | AQ30: 2.498758117e+13 | AR30: revenue passenger kilometres
A31: 9 | B31: Passenger transport - Rail | C31: =C57*10^9 -> 3.477939882e+12 | D31: =D57*10^9 -> 3.709604384e+12 | E31: 3.941268885e+12 | F31: 4.172933386e+12 | G31: 4.404597888e+12 | H31: 4.636262389e+12 | I31: 4.759551676e+12 | J31: 4.882840964e+12 | K31: 5.006130251e+12 | L31: 5.129419538e+12 | M31: 5.252708826e+12 | N31: 5.356785983e+12 | O31: 5.460863139e+12 | P31: 5.564940296e+12 | Q31: 5.669017453e+12 | R31: 5.77309461e+12 | S31: 5.87174824e+12 | T31: 5970401871057 | U31: 6.069055502e+12 | V31: 6.167709132e+12 | W31: 6.266362763e+12 | X31: 6.379563413e+12 | Y31: 6.492764064e+12 | Z31: 6.605964714e+12 | AA31: 6.719165364e+12 | AB31: 6.832366014e+12 | AC31: 6.982424282e+12 | AD31: 7.132482549e+12 | AE31: 7.282540817e+12 | AF31: 7.432599084e+12 | AG31: 7.582657351e+12 | AH31: 7.800643564e+12 | AI31: 8.018629776e+12 | AJ31: 8.236615988e+12 | AK31: 8.454602201e+12 | AL31: 8.672588413e+12 | AM31: 8.966796173e+12 | AN31: 9.261003934e+12 | AO31: 9.555211694e+12 | AP31: 9.849419454e+12 | AQ31: 1.014362721e+13 | AR31: revenue passenger kilometres
A32: 10 | B32: Other transport | C32: =C36 -> 1 | D32: =D36 -> 1.037 | E32: 1.075369 | F32: 1.115157653 | G32: 1.156418486 | H32: 1.19920597 | I32: 1.243576591 | J32: 1.289588925 | K32: 1.337303715 | L32: 1.386783953 | M32: 1.438094959 | N32: 1.492742567 | O32: 1.549466785 | P32: 1.608346523 | Q32: 1.669463691 | R32: 1.732903311 | S32: 1.798753637 | T32: 1.867106275 | U32: 1.938056313 | V32: 2.011702453 | W32: 2.088147146 | X32: 2.146615266 | Y32: 2.206720494 | Z32: 2.268508668 | AA32: 2.33202691 | AB32: 2.397323664 | AC32: 2.464448726 | AD32: 2.533453291 | AE32: 2.604389983 | AF32: 2.677312902 | AG32: 2.752277664 | AH32: 2.829341438 | AI32: 2.908562999 | AJ32: 2.990002763 | AK32: 3.07372284 | AL32: 3.159787079 | AM32: 3.248261118 | AN32: 3.339212429 | AO32: 3.432710377 | AP32: 3.528826268 | AQ32: 3.627633403 | AR32: Index
A33: 11 | B33: Services / Commercial Buildings | C33: =C59*1000000 -> 3.533212767e+10 | D33: =D59*1000000 -> 3.595497193e+10 | E33: 3.657781619e+10 | F33: 3.720066046e+10 | G33: 3.782350472e+10 | H33: 3.844634899e+10 | I33: 3.906919325e+10 | J33: 3.969203752e+10 | K33: 4.031488178e+10 | L33: 4.093772604e+10 | M33: 4.156057031e+10 | N33: 4.218341457e+10 | O33: 4.280625884e+10 | P33: 4.34291031e+10 | Q33: 4.405194737e+10 | R33: 4.467479163e+10 | S33: 4.529763589e+10 | T33: 4.592048016e+10 | U33: 4.654332442e+10 | V33: 4.716616869e+10 | W33: 4.778901295e+10 | X33: 4.836232063e+10 | Y33: 4.89356283e+10 | Z33: 4.950893598e+10 | AA33: 5.008224366e+10 | AB33: 5.065555133e+10 | AC33: 5.122885901e+10 | AD33: 5.180216668e+10 | AE33: 5.237547436e+10 | AF33: 5.294878204e+10 | AG33: 5.352208971e+10 | AH33: 5.409539739e+10 | AI33: 5.466870506e+10 | AJ33: 5.524201274e+10 | AK33: 5.581532042e+10 | AL33: 5.638862809e+10 | AM33: 5.696193577e+10 | AN33: 5.753524344e+10 | AO33: 5.810855112e+10 | AP33: 5.86818588e+10 | AQ33: 5.925516647e+10 | AR33: m2
A34: GDP | B34: GDP Growth | C34: 0.037 | D34: 0.037 | E34: 0.037 | F34: 0.037 | G34: 0.037 | H34: 0.037 | I34: 0.037 | J34: 0.037 | K34: 0.037 | L34: 0.037 | M34: 0.038 | N34: 0.038 | O34: 0.038 | P34: 0.038 | Q34: 0.038 | R34: 0.038 | S34: 0.038 | T34: 0.038 | U34: 0.038 | V34: 0.038 | W34: 0.028 | X34: 0.028 | Y34: 0.028 | Z34: 0.028 | AA34: 0.028 | AB34: 0.028 | AC34: 0.028 | AD34: 0.028 | AE34: 0.028 | AF34: 0.028 | AG34: 0.028 | AH34: 0.028 | AI34: 0.028 | AJ34: 0.028 | AK34: 0.028 | AL34: 0.028 | AM34: 0.028 | AN34: 0.028 | AO34: 0.028 | AP34: 0.028 | AQ34: 0.028 | AR34: GDP Growth
A35: GDP Index (2010) | B35: GDP Index (vs 2010 GDP) | C35: =C34/$C$34 -> 1 | D35: =C35*(1+C34) -> 1.037 | E35: =D35*(1+D34) -> 1.075369 | F35: 1.115157653 | G35: 1.156418486 | H35: 1.19920597 | I35: 1.243576591 | J35: 1.289588925 | K35: 1.337303715 | L35: 1.386783953 | M35: 1.438094959 | N35: 1.492742567 | O35: 1.549466785 | P35: 1.608346523 | Q35: 1.669463691 | R35: 1.732903311 | S35: 1.798753637 | T35: 1.867106275 | U35: 1.938056313 | V35: 2.011702453 | W35: 2.088147146 | X35: 2.146615266 | Y35: 2.206720494 | Z35: 2.268508668 | AA35: 2.33202691 | AB35: 2.397323664 | AC35: 2.464448726 | AD35: 2.533453291 | AE35: 2.604389983 | AF35: 2.677312902 | AG35: 2.752277664 | AH35: 2.829341438 | AI35: 2.908562999 | AJ35: 2.990002763 | AK35: 3.07372284 | AL35: 3.159787079 | AM35: 3.248261118 | AN35: 3.339212429 | AO35: 3.432710377 | AP35: 3.528826268 | AQ35: 3.627633403 | AR35: GDP Index (2010)
A36: GDP Index (Base year) | B36: GDP Index (vs base year GDP) | C36: =IF(by="",C35,C35/HLOOKUP(by,Activity_matrix,17,1)) -> 1 | D36: =IF(by="",D35,D35/HLOOKUP(by,Activity_matrix,17,1)) -> 1.037 | E36: 1.075369 | F36: 1.115157653 | G36: 1.156418486 | H36: 1.19920597 | I36: 1.243576591 | J36: 1.289588925 | K36: 1.337303715 | L36: 1.386783953 | M36: 1.438094959 | N36: 1.492742567 | O36: 1.549466785 | P36: 1.608346523 | Q36: 1.669463691 | R36: 1.732903311 | S36: 1.798753637 | T36: 1.867106275 | U36: 1.938056313 | V36: 2.011702453 | W36: 2.088147146 | X36: 2.146615266 | Y36: 2.206720494 | Z36: 2.268508668 | AA36: 2.33202691 | AB36: 2.397323664 | AC36: 2.464448726 | AD36: 2.533453291 | AE36: 2.604389983 | AF36: 2.677312902 | AG36: 2.752277664 | AH36: 2.829341438 | AI36: 2.908562999 | AJ36: 2.990002763 | AK36: 3.07372284 | AL36: 3.159787079 | AM36: 3.248261118 | AN36: 3.339212429 | AO36: 3.432710377 | AP36: 3.528826268 | AQ36: 3.627633403 | AR36: GDP Index (Base year)
A37: Chemical Index (2010) | B37: Chemical Index (vs 2010) | C37: =C49 -> 1.050163993 | D37: =D49 -> 1.071795282 | E37: 1.120274551 | F37: 1.128481851 | G37: 1.181504304 | H37: 1.234526758 | I37: 1.287549211 | J37: 1.340571664 | K37: 1.393594118 | L37: 1.446616571 | M37: 1.499639024 | N37: 1.546733449 | O37: 1.593827874 | P37: 1.640922299 | Q37: 1.688016723 | R37: 1.735111148 | S37: 1.765228234 | T37: 1.79534532 | U37: 1.825462405 | V37: 1.855579491 | W37: 1.885696577 | X37: 1.908554905 | Y37: 1.931413234 | Z37: 1.954271563 | AA37: 1.977129892 | AB37: 1.999988221 | AC37: 2.021213848 | AD37: 2.042439475 | AE37: 2.063665102 | AF37: 2.084890728 | AG37: 2.106116355 | AH37: 2.125128954 | AI37: 2.144141553 | AJ37: 2.163154153 | AK37: 2.182166752 | AL37: 2.201179351 | AM37: 2.217227723 | AN37: 2.233276095 | AO37: 2.249324467 | AP37: 2.265372839 | AQ37: 2.281421211
A38: Chemical Index (Base year) | B38: Chemical Index (vs base year) | C38: =IF(by="",C37,C37/HLOOKUP(by,Activity_matrix,19,1)) -> 1.050163993 | D38: 1.071795282 | E38: 1.120274551 | F38: 1.128481851 | G38: 1.181504304 | H38: 1.234526758 | I38: 1.287549211 | J38: 1.340571664 | K38: 1.393594118 | L38: 1.446616571 | M38: 1.499639024 | N38: 1.546733449 | O38: 1.593827874 | P38: 1.640922299 | Q38: 1.688016723 | R38: 1.735111148 | S38: 1.765228234 | T38: 1.79534532 | U38: 1.825462405 | V38: 1.855579491 | W38: 1.885696577 | X38: 1.908554905 | Y38: 1.931413234 | Z38: 1.954271563 | AA38: 1.977129892 | AB38: 1.999988221 | AC38: 2.021213848 | AD38: 2.042439475 | AE38: 2.063665102 | AF38: 2.084890728 | AG38: 2.106116355 | AH38: 2.125128954 | AI38: 2.144141553 | AJ38: 2.163154153 | AK38: 2.182166752 | AL38: 2.201179351 | AM38: 2.217227723 | AN38: 2.233276095 | AO38: 2.249324467 | AP38: 2.265372839 | AQ38: 2.281421211
A39: Scope 1 Emissions index | B39: Chemical and Petrochemical Industry | C39: =C6/$C$6 -> 1 | D39: 1.318294118 | E39: 1.259273271 | F39: 1.268580619 | G39: 1.42145396 | H39: 1.5743273 | I39: 1.727200641 | J39: 1.880073982 | K39: 2.032947322 | L39: 2.185820663 | M39: 2.338694003 | N39: 2.349388346 | O39: 2.360082689 | P39: 2.370777033 | Q39: 2.381471376 | R39: 2.392165719 | S39: 2.37804287 | T39: 2.363920021 | U39: 2.349797172 | V39: 2.335674323 | W39: 2.321551474 | X39: 2.312282448 | Y39: 2.303013423 | Z39: 2.293744397 | AA39: 2.284475372 | AB39: 2.275206346 | AC39: 2.26499173 | AD39: 2.254777113 | AE39: 2.244562497 | AF39: 2.23434788 | AG39: 2.224133264 | AH39: 2.219689437 | AI39: 2.215245611 | AJ39: 2.210801784 | AK39: 2.206357958 | AL39: 2.201914131 | AM39: 2.197198284 | AN39: 2.192482436 | AO39: 2.187766588 | AP39: 2.183050741 | AQ39: 2.178334893
A40: Scope 1 Emissions index | B40: Manufacture of light-road automotor vehicles | C40: =C9/$C$9 -> 1 | D40: 0.9908005527 | E40: 0.9187560755 | F40: 1.061159112 | G40: 1.053416975 | H40: 1.045674837 | I40: 1.037932699 | J40: 1.030190562 | K40: 1.022448424 | L40: 1.014706286 | M40: 1.006964148 | N40: 0.9960367001 | O40: 0.9851092518 | P40: 0.9741818035 | Q40: 0.9632543551 | R40: 0.9523269068 | S40: 0.9384666867 | T40: 0.9246064666 | U40: 0.9107462465 | V40: 0.8968860263 | W40: 0.8830258062 | X40: 0.8743369899 | Y40: 0.8656481736 | Z40: 0.8569593573 | AA40: 0.8482705409 | AB40: 0.8395817246 | AC40: 0.825810501 | AD40: 0.8120392774 | AE40: 0.7982680537 | AF40: 0.7844968301 | AG40: 0.7707256065 | AH40: 0.7532123315 | AI40: 0.7356990565 | AJ40: 0.7181857816 | AK40: 0.7006725066 | AL40: 0.6831592316 | AM40: 0.6646607571 | AN40: 0.6461622826 | AO40: 0.627663808 | AP40: 0.6091653335 | AQ40: 0.5906668589
A41: Scope 1 Emissions index | B41: Other industry | C41: =C10/$C$10 -> 1 | D41: 0.9908005527 | E41: 0.9187560755 | F41: 1.061159112 | G41: 1.053416975 | H41: 1.045674837 | I41: 1.037932699 | J41: 1.030190562 | K41: 1.022448424 | L41: 1.014706286 | M41: 1.006964148 | N41: 0.9960367001 | O41: 0.9851092518 | P41: 0.9741818035 | Q41: 0.9632543551 | R41: 0.9523269068 | S41: 0.9384666867 | T41: 0.9246064666 | U41: 0.9107462465 | V41: 0.8968860263 | W41: 0.8830258062 | X41: 0.8743369899 | Y41: 0.8656481736 | Z41: 0.8569593573 | AA41: 0.8482705409 | AB41: 0.8395817246 | AC41: 0.825810501 | AD41: 0.8120392774 | AE41: 0.7982680537 | AF41: 0.7844968301 | AG41: 0.7707256065 | AH41: 0.7532123315 | AI41: 0.7356990565 | AJ41: 0.7181857816 | AK41: 0.7006725066 | AL41: 0.6831592316 | AM41: 0.6646607571 | AN41: 0.6461622826 | AO41: 0.627663808 | AP41: 0.6091653335 | AQ41: 0.5906668589
A42: Scope 1 Emissions index | B42: Other transport | C42: =C15/$C$15 -> 1 | D42: 1.099912187 | E42: 1.165071516 | F42: 1.282360131 | G42: 1.263147818 | H42: 1.243935504 | I42: 1.25495738 | J42: 1.265979256 | K42: 1.277001132 | L42: 1.288023008 | M42: 1.299044884 | N42: 1.301869871 | O42: 1.304694859 | P42: 1.307519846 | Q42: 1.310344834 | R42: 1.313169821 | S42: 1.316810531 | T42: 1.32045124 | U42: 1.32409195 | V42: 1.32773266 | W42: 1.331373369 | X42: 1.333873948 | Y42: 1.336374527 | Z42: 1.338875105 | AA42: 1.341375684 | AB42: 1.343876263 | AC42: 1.337982998 | AD42: 1.332089734 | AE42: 1.32619647 | AF42: 1.320303205 | AG42: 1.314409941 | AH42: 1.304597222 | AI42: 1.294784503 | AJ42: 1.284971784 | AK42: 1.275159065 | AL42: 1.265346346 | AM42: 1.253429745 | AN42: 1.241513144 | AO42: 1.229596543 | AP42: 1.217679942 | AQ42: 1.205763341
A44: Sectoral Activity - Original Units
A45: Code | B45: Sector | C45: 2010 | D45: 2011 | E45: 2012 | F45: 2013 | G45: 2014 | H45: 2015 | I45: 2016 | J45: 2017 | K45: 2018 | L45: 2019 | M45: 2020 | N45: 2021 | O45: 2022 | P45: 2023 | Q45: 2024 | R45: 2025 | S45: 2026 | T45: 2027 | U45: 2028 | V45: 2029 | W45: 2030 | X45: 2031 | Y45: 2032 | Z45: 2033 | AA45: 2034 | AB45: 2035 | AC45: 2036 | AD45: 2037 | AE45: 2038 | AF45: 2039 | AG45: 2040 | AH45: 2041 | AI45: 2042 | AJ45: 2043 | AK45: 2044 | AL45: 2045 | AM45: 2046 | AN45: 2047 | AO45: 2048 | AP45: 2049 | AQ45: 2050 | AR45: Unit
A46: 1 | B46: Power Generation | C46: 21535.92717 | D46: 22129.97466 | E46: 22668.07807 | F46: 23290.0976 | G46: 23801.68795 | H46: 24313.2783 | I46: 24824.86865 | J46: 25336.459 | K46: 25848.04935 | L46: 26359.6397 | M46: 26871.23005 | N46: 27338.58761 | O46: 27805.94517 | P46: 28273.30273 | Q46: 28740.66029 | R46: 29208.01785 | S46: 29703.03311 | T46: 30198.04838 | U46: 30693.06364 | V46: 31188.07891 | W46: 31683.09417 | X46: 32165.59724 | Y46: 32648.10031 | Z46: 33130.60338 | AA46: 33613.10645 | AB46: 34095.60952 | AC46: 34559.46759 | AD46: 35023.32567 | AE46: 35487.18375 | AF46: 35951.04182 | AG46: 36414.8999 | AH46: 36929.34635 | AI46: 37443.7928 | AJ46: 37958.23924 | AK46: 38472.68569 | AL46: 38987.13214 | AM46: 39501.33154 | AN46: 40015.53093 | AO46: 40529.73033 | AP46: 41043.92972 | AQ46: 41558.12911 | AR46: TWh | AS46: ETP2016_scenario_summary
A47: 2 | B47: Iron & Steel Industry | C47: 1440.199567 | D47: 1518.3 | E47: 1546.006701 | F47: 1649.304 | G47: 1663.706839 | H47: 1678.109679 | I47: 1692.512518 | J47: 1706.915357 | K47: 1721.318197 | L47: 1735.721036 | M47: 1750.123875 | N47: 1774.281602 | O47: 1798.439329 | P47: 1822.597056 | Q47: 1846.754782 | R47: 1870.912509 | S47: 1894.576001 | T47: 1918.239493 | U47: 1941.902985 | V47: 1965.566477 | W47: 1989.229969 | X47: 2009.890811 | Y47: 2030.551653 | Z47: 2051.212495 | AA47: 2071.873337 | AB47: 2092.534179 | AC47: 2108.839203 | AD47: 2125.144228 | AE47: 2141.449252 | AF47: 2157.754276 | AG47: 2174.059301 | AH47: 2183.087194 | AI47: 2192.115087 | AJ47: 2201.14298 | AK47: 2210.170873 | AL47: 2219.198767 | AM47: 2222.256746 | AN47: 2225.314725 | AO47: 2228.372705 | AP47: 2231.430684 | AQ47: 2234.488664 | AR47: M tonnes crude steel | AS47: ETP2016_industry_summary
A48: 3 | B48: Cement | C48: 3409.19979 | D48: 3635.173041 | E48: 3835.579208 | F48: 4074.336 | G48: 4109.163733 | H48: 4143.991467 | I48: 4178.8192 | J48: 4213.646933 | K48: 4248.474666 | L48: 4283.3024 | M48: 4318.130133 | N48: 4325.994715 | O48: 4333.859297 | P48: 4341.723879 | Q48: 4349.588461 | R48: 4357.453043 | S48: 4363.353251 | T48: 4369.253459 | U48: 4375.153667 | V48: 4381.053875 | W48: 4386.954083 | X48: 4388.401888 | Y48: 4389.849692 | Z48: 4391.297497 | AA48: 4392.745302 | AB48: 4394.193107 | AC48: 4419.433656 | AD48: 4444.674206 | AE48: 4469.914756 | AF48: 4495.155306 | AG48: 4520.395856 | AH48: 4530.950496 | AI48: 4541.505137 | AJ48: 4552.059777 | AK48: 4562.614418 | AL48: 4573.169058 | AM48: 4571.66645 | AN48: 4570.163842 | AO48: 4568.661234 | AP48: 4567.158626 | AQ48: 4565.656018 | AR48: M tonnes cement | AS48: ETP2016_industry_summary
B49: Chemical and Petrochemical Industry | C49: 1.050163993 | D49: 1.071795282 | E49: 1.120274551 | F49: 1.128481851 | G49: 1.181504304 | H49: 1.234526758 | I49: 1.287549211 | J49: 1.340571664 | K49: 1.393594118 | L49: 1.446616571 | M49: 1.499639024 | N49: 1.546733449 | O49: 1.593827874 | P49: 1.640922299 | Q49: 1.688016723 | R49: 1.735111148 | S49: 1.765228234 | T49: 1.79534532 | U49: 1.825462405 | V49: 1.855579491 | W49: 1.885696577 | X49: 1.908554905 | Y49: 1.931413234 | Z49: 1.954271563 | AA49: 1.977129892 | AB49: 1.999988221 | AC49: 2.021213848 | AD49: 2.042439475 | AE49: 2.063665102 | AF49: 2.084890728 | AG49: 2.106116355 | AH49: 2.125128954 | AI49: 2.144141553 | AJ49: 2.163154153 | AK49: 2.182166752 | AL49: 2.201179351 | AM49: 2.217227723 | AN49: 2.233276095 | AO49: 2.249324467 | AP49: 2.265372839 | AQ49: 2.281421211 | AR49: Index (vs 2010 activity) | AS49: ETP2016_industry_summary
A50: 4 | B50: Aluminium | C50: 77.72103846 | D50: 92.66182481 | E50: 98.18382618 | F50: 117.834005 | G50: 122.6527466 | H50: 127.4714881 | I50: 132.2902297 | J50: 137.1089712 | K50: 141.9277128 | L50: 146.7464543 | M50: 151.5651959 | N50: 155.7550392 | O50: 159.9448826 | P50: 164.134726 | Q50: 168.3245693 | R50: 172.5144127 | S50: 177.098806 | T50: 181.6831992 | U50: 186.2675925 | V50: 190.8519858 | W50: 195.436379 | X50: 199.4568628 | Y50: 203.4773466 | Z50: 207.4978304 | AA50: 211.5183142 | AB50: 215.5387979 | AC50: 218.001685 | AD50: 220.4645721 | AE50: 222.9274592 | AF50: 225.3903463 | AG50: 227.8532334 | AH50: 229.4456161 | AI50: 231.0379988 | AJ50: 232.6303814 | AK50: 234.2227641 | AL50: 235.8151467 | AM50: 236.8079863 | AN50: 237.8008259 | AO50: 238.7936655 | AP50: 239.786505 | AQ50: 240.7793446 | AR50: M tonnes aluminium | AS50: ETP2016_industry_summary
A51: 5 | B51: Pulp & Paper | C51: 407.7795243 | D51: 403.101871 | E51: 403.101871 | F51: 396.085391 | G51: 402.7809015 | H51: 409.4764119 | I51: 416.1719224 | J51: 422.8674328 | K51: 429.5629433 | L51: 436.2584538 | M51: 442.9539642 | N51: 449.2400999 | O51: 455.5262355 | P51: 461.8123712 | Q51: 468.0985069 | R51: 474.3846426 | S51: 480.6908775 | T51: 486.9971125 | U51: 493.3033475 | V51: 499.6095825 | W51: 505.9158175 | X51: 512.1907651 | Y51: 518.4657127 | Z51: 524.7406603 | AA51: 531.0156079 | AB51: 537.2905556 | AC51: 543.1115698 | AD51: 548.932584 | AE51: 554.7535982 | AF51: 560.5746125 | AG51: 566.3956267 | AH51: 575.3362033 | AI51: 584.2767799 | AJ51: 593.2173564 | AK51: 602.157933 | AL51: 611.0985096 | AM51: 611.0985096 | AN51: 611.0985096 | AO51: 611.0985096 | AP51: 611.0985096 | AQ51: 611.0985096 | AR51: M tonnes paper and cardboard | AS51: ETP2016_industry_summary
B52: Manufacture of light-road automotor vehicles | C52: 0.037 | D52: 0.037 | E52: 0.037 | F52: 0.037 | G52: 0.037 | H52: 0.037 | I52: 0.037 | J52: 0.037 | K52: 0.037 | L52: 0.037 | M52: 0.038 | N52: 0.038 | O52: 0.038 | P52: 0.038 | Q52: 0.038 | R52: 0.038 | S52: 0.038 | T52: 0.038 | U52: 0.038 | V52: 0.038 | W52: 0.028 | X52: 0.028 | Y52: 0.028 | Z52: 0.028 | AA52: 0.028 | AB52: 0.028 | AC52: 0.028 | AD52: 0.028 | AE52: 0.028 | AF52: 0.028 | AG52: 0.028 | AH52: 0.028 | AI52: 0.028 | AJ52: 0.028 | AK52: 0.028 | AL52: 0.028 | AM52: 0.028 | AN52: 0.028 | AO52: 0.028 | AP52: 0.028 | AQ52: 0.028 | AR52: $ value added | AS52: GDP growth from IEA ETP2016 Energy Technology Perspectives p. 385
A53: 6 | B53: Other Industry | C53: 0.037 | D53: 0.037 | E53: 0.037 | F53: 0.037 | G53: 0.037 | H53: 0.037 | I53: 0.037 | J53: 0.037 | K53: 0.037 | L53: 0.037 | M53: 0.038 | N53: 0.038 | O53: 0.038 | P53: 0.038 | Q53: 0.038 | R53: 0.038 | S53: 0.038 | T53: 0.038 | U53: 0.038 | V53: 0.038 | W53: 0.028 | X53: 0.028 | Y53: 0.028 | Z53: 0.028 | AA53: 0.028 | AB53: 0.028 | AC53: 0.028 | AD53: 0.028 | AE53: 0.028 | AF53: 0.028 | AG53: 0.028 | AH53: 0.028 | AI53: 0.028 | AJ53: 0.028 | AK53: 0.028 | AL53: 0.028 | AM53: 0.028 | AN53: 0.028 | AO53: 0.028 | AP53: 0.028 | AQ53: 0.028 | AR53: $ value added | AS53: GDP growth from IEA ETP2016 Energy Technology Perspectives p. 381
B54: Passenger transport - Air | C54: 4729.108779 | D54: 5022.251508 | E54: 5315.394238 | F54: 5608.536967 | G54: 5901.679696 | H54: 6194.822425 | I54: 6399.44166 | J54: 6604.060896 | K54: 6808.680131 | L54: 7013.299366 | M54: 7217.918601 | N54: 7429.724594 | O54: 7641.530586 | P54: 7853.336578 | Q54: 8065.14257 | R54: 8276.948562 | S54: 8494.692789 | T54: 8712.437016 | U54: 8930.181242 | V54: 9147.925469 | W54: 9365.669696 | X54: 9567.558128 | Y54: 9769.44656 | Z54: 9971.334992 | AA54: 10173.22342 | AB54: 10375.11186 | AC54: 10570.62621 | AD54: 10766.14057 | AE54: 10961.65493 | AF54: 11157.16928 | AG54: 11352.68364 | AH54: 11549.86752 | AI54: 11747.0514 | AJ54: 11944.23528 | AK54: 12141.41916 | AL54: 12338.60303 | AM54: 12530.2901 | AN54: 12721.97717 | AO54: 12913.66424 | AP54: 13105.35131 | AQ54: 13297.03838 | AR54: passenger kilometres | AS54: ETP2016_transport_summary
A55: 7 | B55: Passenger transport - Light Road | C55: 23214.11342 | D55: 24239.76547 | E55: 25265.41753 | F55: 26291.06959 | G55: 27316.72164 | H55: 28342.3737 | I55: 29125.29868 | J55: 29908.22365 | K55: 30691.14863 | L55: 31474.0736 | M55: 32256.99858 | N55: 33068.75106 | O55: 33880.50354 | P55: 34692.25602 | Q55: 35504.0085 | R55: 36315.76098 | S55: 36963.38854 | T55: 37611.01609 | U55: 38258.64365 | V55: 38906.27121 | W55: 39553.89877 | X55: 40105.72729 | Y55: 40657.55581 | Z55: 41209.38434 | AA55: 41761.21286 | AB55: 42313.04138 | AC55: 42750.31754 | AD55: 43187.59369 | AE55: 43624.86985 | AF55: 44062.14601 | AG55: 44499.42216 | AH55: 44905.14783 | AI55: 45310.8735 | AJ55: 45716.59917 | AK55: 46122.32483 | AL55: 46528.0505 | AM55: 46867.00569 | AN55: 47205.96088 | AO55: 47544.91607 | AP55: 47883.87126 | AQ55: 48222.82644 | AR55: passenger kilometres | AS55: ETP2016_transport_summary
A56: 8 | B56: Passenger transport - Heavy Road | C56: 12781.01094 | D56: 13111.61577 | E56: 13442.22059 | F56: 13772.82541 | G56: 14103.43023 | H56: 14434.03505 | I56: 14721.35076 | J56: 15008.66647 | K56: 15295.98218 | L56: 15583.29789 | M56: 15870.6136 | N56: 16205.32642 | O56: 16540.03924 | P56: 16874.75206 | Q56: 17209.46488 | R56: 17544.1777 | S56: 17853.80173 | T56: 18163.42576 | U56: 18473.04979 | V56: 18782.67382 | W56: 19092.29785 | X56: 19374.76204 | Y56: 19657.22622 | Z56: 19939.69041 | AA56: 20222.1546 | AB56: 20504.61878 | AC56: 20787.0382 | AD56: 21069.45761 | AE56: 21351.87702 | AF56: 21634.29643 | AG56: 21916.71585 | AH56: 22215.46928 | AI56: 22514.22272 | AJ56: 22812.97616 | AK56: 23111.7296 | AL56: 23410.48303 | AM56: 23725.90266 | AN56: 24041.32229 | AO56: 24356.74191 | AP56: 24672.16154 | AQ56: 24987.58117 | AR56: passenger kilometres | AS56: ETP2016_transport_summary
A57: 9 | B57: Passenger transport - Rail | C57: 3477.939882 | D57: 3709.604384 | E57: 3941.268885 | F57: 4172.933386 | G57: 4404.597888 | H57: 4636.262389 | I57: 4759.551676 | J57: 4882.840964 | K57: 5006.130251 | L57: 5129.419538 | M57: 5252.708826 | N57: 5356.785983 | O57: 5460.863139 | P57: 5564.940296 | Q57: 5669.017453 | R57: 5773.09461 | S57: 5871.74824 | T57: 5970.401871 | U57: 6069.055502 | V57: 6167.709132 | W57: 6266.362763 | X57: 6379.563413 | Y57: 6492.764064 | Z57: 6605.964714 | AA57: 6719.165364 | AB57: 6832.366014 | AC57: 6982.424282 | AD57: 7132.482549 | AE57: 7282.540817 | AF57: 7432.599084 | AG57: 7582.657351 | AH57: 7800.643564 | AI57: 8018.629776 | AJ57: 8236.615988 | AK57: 8454.602201 | AL57: 8672.588413 | AM57: 8966.796173 | AN57: 9261.003934 | AO57: 9555.211694 | AP57: 9849.419454 | AQ57: 10143.62721 | AR57: passenger kilometres | AS57: ETP2016_transport_summary
A58: 10 | B58: Other transport | C58: 0.037 | D58: 0.037 | E58: 0.037 | F58: 0.037 | G58: 0.037 | H58: 0.037 | I58: 0.037 | J58: 0.037 | K58: 0.037 | L58: 0.037 | M58: 0.038 | N58: 0.038 | O58: 0.038 | P58: 0.038 | Q58: 0.038 | R58: 0.038 | S58: 0.038 | T58: 0.038 | U58: 0.038 | V58: 0.038 | W58: 0.028 | X58: 0.028 | Y58: 0.028 | Z58: 0.028 | AA58: 0.028 | AB58: 0.028 | AC58: 0.028 | AD58: 0.028 | AE58: 0.028 | AF58: 0.028 | AG58: 0.028 | AH58: 0.028 | AI58: 0.028 | AJ58: 0.028 | AK58: 0.028 | AL58: 0.028 | AM58: 0.028 | AN58: 0.028 | AO58: 0.028 | AP58: 0.028 | AQ58: 0.028 | AR58: $ value added | AS58: GDP growth from IEA ETP2016 Energy Technology Perspectives p. 385
A59: 11 | B59: Services / Commercial Buildings | C59: 35332.12767 | D59: 35954.97193 | E59: 36577.81619 | F59: 37200.66046 | G59: 37823.50472 | H59: 38446.34899 | I59: 39069.19325 | J59: 39692.03752 | K59: 40314.88178 | L59: 40937.72604 | M59: 41560.57031 | N59: 42183.41457 | O59: 42806.25884 | P59: 43429.1031 | Q59: 44051.94737 | R59: 44674.79163 | S59: 45297.63589 | T59: 45920.48016 | U59: 46543.32442 | V59: 47166.16869 | W59: 47789.01295 | X59: 48362.32063 | Y59: 48935.6283 | Z59: 49508.93598 | AA59: 50082.24366 | AB59: 50655.55133 | AC59: 51228.85901 | AD59: 51802.16668 | AE59: 52375.47436 | AF59: 52948.78204 | AG59: 53522.08971 | AH59: 54095.39739 | AI59: 54668.70506 | AJ59: 55242.01274 | AK59: 55815.32042 | AL59: 56388.62809 | AM59: 56961.93577 | AN59: 57535.24344 | AO59: 58108.55112 | AP59: 58681.8588 | AQ59: 59255.16647 | AR59: M m2 | AS59: Transition to Sustainable Buildings, 2013 (http://www.iea.org/w/bookshop/add.aspx?id=457)
A62: Scope 1. Carbon Intensity
A63: Code | B63: Sector | C63: 2010 | D63: 2011 | E63: 2012 | F63: 2013 | G63: 2014 | H63: 2015 | I63: 2016 | J63: 2017 | K63: 2018 | L63: 2019 | M63: 2020 | N63: 2021 | O63: 2022 | P63: 2023 | Q63: 2024 | R63: 2025 | S63: 2026 | T63: 2027 | U63: 2028 | V63: 2029 | W63: 2030 | X63: 2031 | Y63: 2032 | Z63: 2033 | AA63: 2034 | AB63: 2035 | AC63: 2036 | AD63: 2037 | AE63: 2038 | AF63: 2039 | AG63: 2040 | AH63: 2041 | AI63: 2042 | AJ63: 2043 | AK63: 2044 | AL63: 2045 | AM63: 2046 | AN63: 2047 | AO63: 2048 | AP63: 2049 | AQ63: 2050 | AR63: Unit
A64: 1 | B64: Power Generation | C64: 0.6264638411 | D64: 0.5905074351 | E64: 0.5893107095 | F64: 0.5863254696 | G64: 0.5698972701 | H64: 0.554160422 | I64: 0.5390721831 | J64: 0.5245932636 | K64: 0.510687484 | L64: 0.4973214738 | M64: 0.4844644036 | N64: 0.4636465841 | O64: 0.4435285693 | P64: 0.4240756558 | Q64: 0.4052553977 | R64: 0.3870374256 | S64: 0.3644256688 | T64: 0.3425552292 | U64: 0.321390239 | V64: 0.3008971075 | W64: 0.2810443437 | X64: 0.2603025426 | Y64: 0.2401738236 | Z64: 0.2206314005 | AA64: 0.2016500252 | AB64: 0.1832058786 | AC64: 0.16624199 | AD64: 0.1497274496 | AE64: 0.1336446372 | AF64: 0.1179768415 | AG64: 0.1027082029 | AH64: 0.09244182726 | AI64: 0.08245755445 | AJ64: 0.07274391452 | AK64: 0.06329005098 | AL64: 0.05408568034 | AM64: 0.04970498994 | AN64: 0.04543688323 | AO64: 0.0412770752 | AP64: 0.03722149552 | AQ64: 0.03326627535 | AR64: tCO2 / MWh
A65: 2 | B65: Iron & Steel Industry | C65: 1.938036497 | D65: 1.969653541 | E65: 1.650520256 | F65: 1.708201266 | G65: 1.695639536 | H65: 1.683293436 | I65: 1.67115746 | J65: 1.659226289 | K65: 1.647494782 | L65: 1.635957969 | M65: 1.624611043 | N65: 1.575537005 | O65: 1.527781351 | P65: 1.481291658 | Q65: 1.436018245 | R65: 1.391913996 | S65: 1.325684034 | T65: 1.261088103 | U65: 1.198066468 | V65: 1.136562271 | W65: 1.076521357 | X65: 1.039261091 | Y65: 1.002759069 | Z65: 0.9669923816 | AA65: 0.9319390289 | AB65: 0.8975778816 | AC65: 0.8647897621 | AD65: 0.8325047719 | AE65: 0.8007114183 | AF65: 0.7693985564 | AG65: 0.7385553753 | AH65: 0.7194526033 | AI65: 0.700507175 | AJ65: 0.6817171544 | AK65: 0.6630806371 | AL65: 0.6445957498 | AM65: 0.6329435659 | AN65: 0.6213234062 | AO65: 0.6097351391 | AP65: 0.5981786334 | AQ65: 0.5866537587 | AR65: tCO2 / ton crude steel
A66: 3 | B66: Cement | C66: 0.6402160709 | D66: 0.5949218425 | E66: 0.5963020011 | F66: 0.5469681795 | G66: 0.5474292697 | H66: 0.5478826096 | I66: 0.5483283929 | J66: 0.548766807 | K66: 0.5491980331 | L66: 0.5496222465 | M66: 0.550039617 | N66: 0.5443133691 | O66: 0.5386079038 | P66: 0.5329231082 | Q66: 0.5272588702 | R66: 0.5216150785 | S66: 0.5174949531 | T66: 0.5133859553 | U66: 0.50928804 | V66: 0.5052011625 | W66: 0.5011252782 | X66: 0.4958545972 | Y66: 0.4905873928 | Z66: 0.4853236616 | AA66: 0.4800634002 | AB66: 0.474806605 | AC66: 0.4679491548 | AD66: 0.4611695892 | AE66: 0.4544665888 | AF66: 0.4478388638 | AG66: 0.4412851534 | AH66: 0.4349394999 | AI66: 0.4286233416 | AJ66: 0.4223364732 | AK66: 0.4160786914 | AL66: 0.409849795 | AM66: 0.4017971335 | AN66: 0.3937391768 | AO66: 0.3856759196 | AP66: 0.3776073568 | AQ66: 0.369533483 | AR66: tCO2 / ton cement
B67: Chemical and Petrochemical Industry | C67: 0.9522322294 | D67: 1.229986864 | E67: 1.124075584 | F67: 1.124148003 | G67: 1.203088262 | H67: 1.275247612 | I67: 1.341463787 | J67: 1.402441982 | K67: 1.458780068 | L67: 1.510988265 | M67: 1.559504631 | N67: 1.518935501 | O67: 1.480763844 | P67: 1.444783238 | Q67: 1.410810297 | R67: 1.378681545 | S67: 1.347158868 | T67: 1.316693783 | U67: 1.287233944 | V67: 1.258730404 | W67: 1.231137343 | X67: 1.211535723 | Y67: 1.192398075 | Z67: 1.173708117 | AA67: 1.155450322 | AB67: 1.137609873 | AC67: 1.120609643 | AD67: 1.103962757 | AE67: 1.08765831 | AF67: 1.071685844 | AG67: 1.056035322 | AH67: 1.044496351 | AI67: 1.033162016 | AJ67: 1.022026924 | AK67: 1.011085865 | AL67: 1.000333812 | AM67: 0.9909664491 | AN67: 0.9817337143 | AO67: 0.972632726 | AP67: 0.9636606844 | AQ67: 0.9548148681 | AR67: Index
A68: 4 | B68: Aluminium | C68: 2.086372001 | D68: 1.622455286 | E68: 1.678338995 | F68: 2.066623139 | G68: 2.06338433 | H68: 2.060390392 | I68: 2.057614566 | J68: 2.055033854 | K68: 2.052628383 | L68: 2.05038089 | M68: 2.048276307 | N68: 2.048276307 | O68: 2.048276307 | P68: 2.048276307 | Q68: 2.048276307 | R68: 2.048276307 | S68: 1.952948372 | T68: 1.852936261 | U68: 1.75784712 | V68: 1.66732619 | W68: 1.581051997 | X68: 1.52662875 | Y68: 1.474356188 | Z68: 1.424109295 | AA68: 1.37577256 | AB68: 1.329239094 | AC68: 1.329239094 | AD68: 1.329239094 | AE68: 1.329239094 | AF68: 1.329239094 | AG68: 1.329239094 | AH68: 1.314017685 | AI68: 1.291623453 | AJ68: 1.269535803 | AK68: 1.247748482 | AL68: 1.226255407 | AM68: 1.198853631 | AN68: 1.171680665 | AO68: 1.144733655 | AP68: 1.118009793 | AQ68: 1.09150632 | AR68: tCO2 / ton aluminium
A69: 5 | B69: Pulp & Paper | C69: 0.584975678 | D69: 0.588813066 | E69: 0.588813066 | F69: 0.5571074386 | G69: 0.5403451108 | H69: 0.5241309579 | I69: 0.5084385223 | J69: 0.4932430218 | K69: 0.4785212198 | L69: 0.4642513057 | M69: 0.450412788 | N69: 0.4360965947 | O69: 0.4221755205 | P69: 0.4086334303 | Q69: 0.3954550559 | R69: 0.3826259384 | S69: 0.3708490916 | T69: 0.3593772468 | U69: 0.348198707 | V69: 0.3373023655 | W69: 0.3266776696 | X69: 0.3158296084 | Y69: 0.3052441335 | Z69: 0.2949118249 | AA69: 0.2848237076 | AB69: 0.2749712259 | AC69: 0.2668751531 | AD69: 0.2589507857 | AE69: 0.2511927186 | AF69: 0.2435957713 | AG69: 0.2361549761 | AH69: 0.2289389353 | AI69: 0.2219437335 | AJ69: 0.2151593858 | AK69: 0.2085765 | AL69: 0.202186234 | AM69: 0.1992412478 | AN69: 0.1962962615 | AO69: 0.1933512753 | AP69: 0.1904062891 | AQ69: 0.1874613028 | AR69: tCO2 / ton paper and cardboard
B70: Manufacture of light-road automotor vehicles | C70: 1 | D70: 0.9554489419 | E70: 0.8543635491 | F70: 0.9515776622 | G70: 0.9109305907 | H70: 0.8719726745 | I70: 0.8346351216 | J70: 0.798851899 | K70: 0.7645596227 | L70: 0.7316974531 | M70: 0.7002069941 | N70: 0.6672528284 | O70: 0.6357730681 | P70: 0.6057039262 | Q70: 0.5769843098 | R70: 0.5495557086 | S70: 0.5217316411 | T70: 0.4952082691 | U70: 0.4699276488 | V70: 0.4458343355 | W70: 0.4228752786 | X70: 0.4073095927 | Y70: 0.3922781231 | Z70: 0.3777633163 | AA70: 0.3637481785 | AB70: 0.3502162588 | AC70: 0.3350893415 | AD70: 0.3205266425 | AE70: 0.3065086485 | AF70: 0.2930164903 | AG70: 0.2800319229 | AH70: 0.2662147174 | AI70: 0.252942452 | AJ70: 0.2401956916 | AK70: 0.2279556561 | AL70: 0.2162041981 | AM70: 0.2046204825 | AN70: 0.1935073902 | AO70: 0.1828478779 | AP70: 0.1726254815 | AQ70: 0.1628242971 | AR70: Index
A71: 6 | B71: Other Industry | C71: 1 | D71: 0.9554489419 | E71: 0.8543635491 | F71: 0.9515776622 | G71: 0.9109305907 | H71: 0.8719726745 | I71: 0.8346351216 | J71: 0.798851899 | K71: 0.7645596227 | L71: 0.7316974531 | M71: 0.7002069941 | N71: 0.6672528284 | O71: 0.6357730681 | P71: 0.6057039262 | Q71: 0.5769843098 | R71: 0.5495557086 | S71: 0.5217316411 | T71: 0.4952082691 | U71: 0.4699276488 | V71: 0.4458343355 | W71: 0.4228752786 | X71: 0.4073095927 | Y71: 0.3922781231 | Z71: 0.3777633163 | AA71: 0.3637481785 | AB71: 0.3502162588 | AC71: 0.3350893415 | AD71: 0.3205266425 | AE71: 0.3065086485 | AF71: 0.2930164903 | AG71: 0.2800319229 | AH71: 0.2662147174 | AI71: 0.252942452 | AJ71: 0.2401956916 | AK71: 0.2279556561 | AL71: 0.2162041981 | AM71: 0.2046204825 | AN71: 0.1935073902 | AO71: 0.1828478779 | AP71: 0.1726254815 | AQ71: 0.1628242971 | AR71: Index
B72: Passenger transport - Air | C72: 187.2210793 | D72: 181.2837441 | E72: 176.0012942 | F72: 171.2710424 | G72: 167.0107039 | H72: 163.153569 | I72: 157.4933609 | J72: 152.1839029 | K72: 147.193572 | L72: 142.4944358 | M72: 138.0617292 | N72: 133.1388972 | O72: 128.4889648 | P72: 124.0898516 | Q72: 119.9217965 | R72: 115.9670614 | S72: 111.4212373 | T72: 107.1026349 | U72: 102.994633 | V72: 99.08219326 | W72: 95.35167559 | X72: 91.00568264 | Y72: 86.83931208 | Z72: 82.84165354 | AA72: 79.0026627 | AB72: 75.31307707 | AC72: 71.84660232 | AD72: 68.50603074 | AE72: 65.28462541 | AF72: 62.17612166 | AG72: 59.17468636 | AH72: 56.19894539 | AI72: 53.32310493 | AJ72: 50.54221728 | AK72: 47.85165617 | AL72: 45.24709107 | AM72: 42.53806925 | AN72: 39.91068325 | AO72: 37.36129771 | AP72: 34.88648998 | AQ72: 32.48303478 | AR72: gCO2 / pKm
A73: 7 | B73: Passenger transport - Light Road | C73: 146.8646479 | D73: 143.1169138 | E73: 139.673459 | F73: 136.4986723 | G73: 133.562291 | H73: 130.8384328 | I73: 127.3250679 | J73: 123.9956457 | K73: 120.8360893 | L73: 117.8337224 | M73: 114.9770992 | N73: 111.70944 | O73: 108.5983623 | P73: 105.6328747 | Q73: 102.8029911 | R73: 100.0996182 | S73: 96.97590686 | T73: 93.95977051 | U73: 91.04574614 | V73: 88.22873454 | W73: 85.50397045 | X73: 82.52033982 | Y73: 79.61770041 | Z73: 76.7927986 | AA73: 74.04255273 | AB73: 71.36404192 | AC73: 68.63583452 | AD73: 65.96287354 | AE73: 63.34349769 | AF73: 60.77611162 | AG73: 58.25918268 | AH73: 55.83028137 | AI73: 53.44487812 | AJ73: 51.10181482 | AK73: 48.79997411 | AL73: 46.53827762 | AM73: 44.66540719 | AN73: 42.81943249 | AO73: 40.99977828 | AP73: 39.20588561 | AQ73: 37.43721125 | AR73: gCO2 / pKm
A74: 8 | B74: Passenger transport - Heavy Road | C74: 33.84924588 | D74: 32.76987829 | E74: 31.74360372 | F74: 30.76659883 | G74: 29.83539876 | H74: 28.94685609 | I74: 28.24665543 | J74: 27.5732631 | K74: 26.92516842 | L74: 26.30097212 | M74: 25.69937625 | N74: 25.16362138 | O74: 24.64955014 | P74: 24.15587224 | Q74: 23.68139775 | R74: 23.22502759 | S74: 22.79828144 | T74: 22.38608441 | U74: 21.98770492 | V74: 21.60245965 | W74: 21.22970959 | X74: 20.81535318 | Y74: 20.41290494 | Z74: 20.0218588 | AA74: 19.64173697 | AB74: 19.27208799 | AC74: 18.83129913 | AD74: 18.40232712 | AE74: 17.98470307 | AF74: 17.57798255 | AG74: 17.18174405 | AH74: 16.76737738 | AI74: 16.36400763 | AJ74: 15.97120274 | AK74: 15.58855303 | AL74: 15.21566971 | AM74: 14.83037688 | AN74: 14.45519405 | AO74: 14.08972846 | AP74: 13.7336074 | AQ74: 13.38647702 | AR74: gCO2 / pKm
A75: 9 | B75: Passenger transport - Rail | C75: 21.26296984 | D75: 19.95544079 | E75: 18.80162268 | F75: 17.77591526 | G75: 16.85810419 | H75: 16.03201538 | I75: 15.39791326 | J75: 14.79583266 | K75: 14.22340774 | L75: 13.67850011 | M75: 13.15917214 | N75: 12.51665592 | O75: 11.8986308 | P75: 11.30372265 | Q75: 10.73065827 | R75: 10.17825626 | S75: 9.640461495 | T75: 9.120439536 | U75: 8.617323686 | V75: 8.130302695 | W75: 7.658616401 | X75: 7.103398979 | Y75: 6.56754187 | Z75: 6.050049792 | AA75: 5.549994534 | AB75: 5.066509402 | AC75: 4.599485692 | AD75: 4.15211314 | AE75: 3.723176997 | AF75: 3.311560613 | AG75: 2.916235732 | AH75: 2.658335877 | AI75: 2.414458021 | AJ75: 2.183488868 | AK75: 1.964429935 | AL75: 1.75638313 | AM75: 1.612153392 | AN75: 1.477087564 | AO75: 1.350339169 | AP75: 1.231162868 | AQ75: 1.118899792 | AR75: gCO2 / pKm
A76: 10 | B76: Other transport | C76: 1 | D76: 1.06066749 | E76: 1.083415568 | F76: 1.14993618 | G76: 1.092293 | H76: 1.037299292 | I76: 1.009151659 | J76: 0.981692097 | K76: 0.9549073389 | L76: 0.9287841884 | M76: 0.9033095317 | N76: 0.872132878 | O76: 0.8420282845 | P76: 0.8129590407 | Q76: 0.7848896871 | R76: 0.7577859728 | S76: 0.7320683078 | T76: 0.7072180402 | U76: 0.6832061283 | V76: 0.6600044941 | W76: 0.6375859919 | X76: 0.6213847302 | Y76: 0.6055930193 | Z76: 0.5902005685 | AA76: 0.5751973436 | AB76: 0.5605735608 | AC76: 0.5429137088 | AD76: 0.5257999975 | AE76: 0.5092157773 | AF76: 0.4931449006 | AG76: 0.4775717066 | AH76: 0.461095718 | AI76: 0.4451629563 | AJ76: 0.4297560524 | AK76: 0.4148581806 | AL76: 0.4004530414 | AM76: 0.3858771508 | AN76: 0.371798192 | AO76: 0.3581999085 | AP76: 0.3450665602 | AQ76: 0.3323829083 | AR76: Index
A77: 11 | B77: Services / Commercial Buildings | C77: 25.52351473 | D77: 24.37498108 | E77: 22.88648794 | F77: 25.49102119 | G77: 24.79764583 | H77: 24.1267363 | I77: 23.47721817 | J77: 22.84808441 | K77: 22.23839024 | L77: 21.64724837 | M77: 21.0738247 | N77: 20.37206011 | O77: 19.6907173 | P77: 19.02891763 | Q77: 18.38583214 | R77: 17.76067811 | S77: 17.10719708 | T77: 16.47144309 | U77: 15.85270445 | V77: 15.2503071 | W77: 14.66361208 | X77: 14.27249709 | Y77: 13.89054635 | Z77: 13.5174415 | AA77: 13.15287875 | AB77: 12.79656808 | AC77: 12.42313702 | AD77: 12.05797168 | AE77: 11.70080061 | AF77: 11.35136415 | AG77: 11.00941374 | AH77: 10.6479402 | AI77: 10.29404817 | AJ77: 9.947501598 | AK77: 9.60807414 | AL77: 9.275548654 | AM77: 8.929836038 | AN77: 8.591013101 | AO77: 8.25887592 | AP77: 7.93322854 | AQ77: 7.61388259 | AR77: kgCO2 / m2
A79: Electricity Consumption (TWh)
A80: Code | B80: Sector | C80: 2010 | D80: 2011 | E80: 2012 | F80: 2013 | G80: 2014 | H80: 2015 | I80: 2016 | J80: 2017 | K80: 2018 | L80: 2019 | M80: 2020 | N80: 2021 | O80: 2022 | P80: 2023 | Q80: 2024 | R80: 2025 | S80: 2026 | T80: 2027 | U80: 2028 | V80: 2029 | W80: 2030 | X80: 2031 | Y80: 2032 | Z80: 2033 | AA80: 2034 | AB80: 2035 | AC80: 2036 | AD80: 2037 | AE80: 2038 | AF80: 2039 | AG80: 2040 | AH80: 2041 | AI80: 2042 | AJ80: 2043 | AK80: 2044 | AL80: 2045 | AM80: 2046 | AN80: 2047 | AO80: 2048 | AP80: 2049 | AQ80: 2050
A81: 1 | B81: Power Generation | C81: 0 | D81: 0 | E81: 0 | F81: 0 | G81: 0 | H81: 0 | I81: 0 | J81: 0 | K81: 0 | L81: 0 | M81: 0 | N81: 0 | O81: 0 | P81: 0 | Q81: 0 | R81: 0 | S81: 0 | T81: 0 | U81: 0 | V81: 0 | W81: 0 | X81: 0 | Y81: 0 | Z81: 0 | AA81: 0 | AB81: 0 | AC81: 0 | AD81: 0 | AE81: 0 | AF81: 0 | AG81: 0 | AH81: 0 | AI81: 0 | AJ81: 0 | AK81: 0 | AL81: 0 | AM81: 0 | AN81: 0 | AO81: 0 | AP81: 0 | AQ81: 0
A82: 2 | B82: Iron & Steel Industry | C82: 1030.740446 | D82: 1095.618385 | E82: 1054.027691 | F82: 1172.139947 | G82: 1187.904897 | H82: 1203.669846 | I82: 1219.434795 | J82: 1235.199744 | K82: 1250.964693 | L82: 1266.729643 | M82: 1282.494592 | N82: 1296.415539 | O82: 1310.336486 | P82: 1324.257433 | Q82: 1338.17838 | R82: 1352.099327 | S82: 1363.304907 | T82: 1374.510486 | U82: 1385.716066 | V82: 1396.921645 | W82: 1408.127225 | X82: 1424.009869 | Y82: 1439.892514 | Z82: 1455.775159 | AA82: 1471.657804 | AB82: 1487.540448 | AC82: 1500.902878 | AD82: 1514.265307 | AE82: 1527.627736 | AF82: 1540.990165 | AG82: 1554.352594 | AH82: 1574.558733 | AI82: 1594.764873 | AJ82: 1614.971012 | AK82: 1635.177152 | AL82: 1655.383291 | AM82: 1667.138658 | AN82: 1678.894024 | AO82: 1690.649391 | AP82: 1702.404758 | AQ82: 1714.160124 | AR82: ETP2016_industry_summary | AT82: Note: Conversion from Petajoules to Terawatts (See ETPcomparison.doc)
A83: 3 | B83: Cement | C83: 357.7883942 | D83: 358.020092 | E83: 369.3802809 | F83: 364.0477332 | G83: 361.1448508 | H83: 358.2419684 | I83: 355.3390861 | J83: 352.4362037 | K83: 349.5333213 | L83: 346.6304389 | M83: 343.7275565 | N83: 345.6377916 | O83: 347.5480267 | P83: 349.4582618 | Q83: 351.3684969 | R83: 353.278732 | S83: 355.2308199 | T83: 357.1829078 | U83: 359.1349957 | V83: 361.0870837 | W83: 363.0391716 | X83: 366.5315704 | Y83: 370.0239692 | Z83: 373.5163681 | AA83: 377.0087669 | AB83: 380.5011657 | AC83: 388.5067202 | AD83: 396.5122746 | AE83: 404.5178291 | AF83: 412.5233835 | AG83: 420.5289379 | AH83: 426.7983907 | AI83: 433.0678434 | AJ83: 439.3372961 | AK83: 445.6067489 | AL83: 451.8762016 | AM83: 458.0790848 | AN83: 464.281968 | AO83: 470.4848512 | AP83: 476.6877345 | AQ83: 482.8906177 | AR83: ETP2016_industry_summary | AT83: Note: Conversion from Petajoules to Terawatts (See ETPcomparison.doc)
B84: Chemical and Petrochemical Industry | C84: 1153.981679 | D84: 1162.71025 | E84: 1077.703952 | F84: 1133.299957 | G84: 1222.141264 | H84: 1310.98257 | I84: 1399.823876 | J84: 1488.665182 | K84: 1577.506488 | L84: 1666.347795 | M84: 1755.189101 | N84: 1790.142109 | O84: 1825.095117 | P84: 1860.048125 | Q84: 1895.001133 | R84: 1929.954141 | S84: 1958.791707 | T84: 1987.629272 | U84: 2016.466838 | V84: 2045.304404 | W84: 2074.14197 | X84: 2068.512334 | Y84: 2062.882699 | Z84: 2057.253063 | AA84: 2051.623427 | AB84: 2045.993792 | AC84: 2007.168483 | AD84: 1968.343174 | AE84: 1929.517866 | AF84: 1890.692557 | AG84: 1851.867248 | AH84: 1849.502375 | AI84: 1847.137502 | AJ84: 1844.772629 | AK84: 1842.407756 | AL84: 1840.042883 | AM84: 1837.200535 | AN84: 1834.358186 | AO84: 1831.515838 | AP84: 1828.67349 | AQ84: 1825.831141 | AR84: ETP2016_industry_summary | AT84: Note: Conversion from Petajoules to Terawatts (See ETPcomparison.doc)
A85: 4 | B85: Aluminium | C85: 566.1041636 | D85: 676.8342332 | E85: 735.9513401 | F85: 872.4878911 | G85: 905.0735096 | H85: 937.6591282 | I85: 970.2447467 | J85: 1002.830365 | K85: 1035.415984 | L85: 1068.001602 | M85: 1100.587221 | N85: 1133.19567 | O85: 1165.804119 | P85: 1198.412568 | Q85: 1231.021017 | R85: 1263.629466 | S85: 1297.864465 | T85: 1332.099463 | U85: 1366.334462 | V85: 1400.569461 | W85: 1434.804459 | X85: 1466.614078 | Y85: 1498.423697 | Z85: 1530.233316 | AA85: 1562.042935 | AB85: 1593.852554 | AC85: 1611.862889 | AD85: 1629.873224 | AE85: 1647.883558 | AF85: 1665.893893 | AG85: 1683.904228 | AH85: 1691.173007 | AI85: 1698.441786 | AJ85: 1705.710564 | AK85: 1712.979343 | AL85: 1720.248122 | AM85: 1727.725799 | AN85: 1735.203476 | AO85: 1742.681153 | AP85: 1750.158831 | AQ85: 1757.636508 | AR85: ETP2016_industry_summary | AT85: Note: Conversion from Petajoules to Terawatts (See ETPcomparison.doc)
A86: 5 | B86: Pulp & Paper | C86: 513.5230837 | D86: 505.5942559 | E86: 495.2561235 | F86: 488.531948 | G86: 490.6645149 | H86: 492.7970819 | I86: 494.9296488 | J86: 497.0622158 | K86: 499.1947827 | L86: 501.3273497 | M86: 503.4599166 | N86: 506.264966 | O86: 509.0700154 | P86: 511.8750648 | Q86: 514.6801142 | R86: 517.4851636 | S86: 520.3215145 | T86: 523.1578655 | U86: 525.9942164 | V86: 528.8305674 | W86: 531.6669183 | X86: 534.1993779 | Y86: 536.7318376 | Z86: 539.2642972 | AA86: 541.7967569 | AB86: 544.3292165 | AC86: 546.7073029 | AD86: 549.0853894 | AE86: 551.4634758 | AF86: 553.8415622 | AG86: 556.2196486 | AH86: 558.1955446 | AI86: 560.1714406 | AJ86: 562.1473365 | AK86: 564.1232325 | AL86: 566.0991285 | AM86: 566.9276437 | AN86: 567.756159 | AO86: 568.5846742 | AP86: 569.4131894 | AQ86: 570.2417047 | AR86: ETP2016_industry_summary | AT86: Note: Conversion from Petajoules to Terawatts (See ETPcomparison.doc)
B87: Manufacture of light-road automotor vehicles | C87: 4027.232053 | D87: 4035.563921 | E87: 4293.500001 | F87: 4143.870019 | G87: 4212.228396 | H87: 4280.586774 | I87: 4348.945151 | J87: 4417.303529 | K87: 4485.661906 | L87: 4554.020284 | M87: 4622.378661 | N87: 4686.708063 | O87: 4751.037465 | P87: 4815.366867 | Q87: 4879.696269 | R87: 4944.02567 | S87: 5021.599915 | T87: 5099.174159 | U87: 5176.748403 | V87: 5254.322648 | W87: 5331.896892 | X87: 5423.738247 | Y87: 5515.579602 | Z87: 5607.420957 | AA87: 5699.262312 | AB87: 5791.103667 | AC87: 5906.629395 | AD87: 6022.155124 | AE87: 6137.680853 | AF87: 6253.206581 | AG87: 6368.73231 | AH87: 6470.087359 | AI87: 6571.442409 | AJ87: 6672.797458 | AK87: 6774.152507 | AL87: 6875.507557 | AM87: 6964.499659 | AN87: 7053.49176 | AO87: 7142.483862 | AP87: 7231.475964 | AQ87: 7320.468065 | AR87: ETP2016_scenario_summary&ETP2016_industry_summary
A88: 6 | B88: Other Industry | C88: 4049.338549 | D88: 4035.563921 | E88: 4293.500001 | F88: 4143.870019 | G88: 4212.228396 | H88: 4280.586774 | I88: 4348.945151 | J88: 4417.303529 | K88: 4485.661906 | L88: 4554.020284 | M88: 4622.378661 | N88: 4686.708063 | O88: 4751.037465 | P88: 4815.366867 | Q88: 4879.696269 | R88: 4944.02567 | S88: 5021.599915 | T88: 5099.174159 | U88: 5176.748403 | V88: 5254.322648 | W88: 5331.896892 | X88: 5423.738247 | Y88: 5515.579602 | Z88: 5607.420957 | AA88: 5699.262312 | AB88: 5791.103667 | AC88: 5906.629395 | AD88: 6022.155124 | AE88: 6137.680853 | AF88: 6253.206581 | AG88: 6368.73231 | AH88: 6470.087359 | AI88: 6571.442409 | AJ88: 6672.797458 | AK88: 6774.152507 | AL88: 6875.507557 | AM88: 6964.499659 | AN88: 7053.49176 | AO88: 7142.483862 | AP88: 7231.475964 | AQ88: 7320.468065 | AR88: ETP2016_scenario_summary&ETP2016_industry_summary
B89: Passenger transport - Air | C89: 0 | D89: 0 | E89: 0 | F89: 0 | G89: 0 | H89: 0 | I89: 0 | J89: 0 | K89: 0 | L89: 0 | M89: 0 | N89: 0 | O89: 0 | P89: 0 | Q89: 0 | R89: 0 | S89: 0 | T89: 0 | U89: 0 | V89: 0 | W89: 0 | X89: 0 | Y89: 0 | Z89: 0 | AA89: 0 | AB89: 0 | AC89: 0 | AD89: 0 | AE89: 0 | AF89: 0 | AG89: 0 | AH89: 0 | AI89: 0 | AJ89: 0 | AK89: 0 | AL89: 0 | AM89: 0 | AN89: 0 | AO89: 0 | AP89: 0 | AQ89: 0 | AR89: ETP2016_transport_summary
A90: 7 | B90: Passenger transport - Light Road | C90: 22.22222222 | D90: 25 | E90: 27.77777778 | F90: 30.55555556 | G90: 30.95238095 | H90: 31.34920635 | I90: 31.74603175 | J90: 32.14285715 | K90: 32.53968254 | L90: 32.93650794 | M90: 33.33333334 | N90: 45 | O90: 56.66666667 | P90: 68.33333334 | Q90: 80.00000001 | R90: 91.66666667 | S90: 117.7777778 | T90: 143.8888889 | U90: 170 | V90: 196.1111111 | W90: 222.2222222 | X90: 273.3333334 | Y90: 324.4444445 | Z90: 375.5555556 | AA90: 426.6666667 | AB90: 477.7777778 | AC90: 552.7777778 | AD90: 627.7777778 | AE90: 702.7777778 | AF90: 777.7777778 | AG90: 852.7777778 | AH90: 934.4444445 | AI90: 1016.111111 | AJ90: 1097.777778 | AK90: 1179.444445 | AL90: 1261.111111 | AM90: 1342.222222 | AN90: 1423.333333 | AO90: 1504.444445 | AP90: 1585.555556 | AQ90: 1666.666667 | AR90: ETP2016_transport_summary | AU90: Note: Conversion from Exajoules to Terawatts
A91: 8 | B91: Passenger transport - Heavy Road | C91: 0 | D91: 0 | E91: 0 | F91: 0 | G91: 0 | H91: 0 | I91: 0 | J91: 0 | K91: 0 | L91: 0 | M91: 0 | N91: 0 | O91: 0 | P91: 0 | Q91: 0 | R91: 0 | S91: 0 | T91: 0 | U91: 0 | V91: 0 | W91: 0 | X91: 0 | Y91: 0 | Z91: 0 | AA91: 0 | AB91: 0 | AC91: 0 | AD91: 0 | AE91: 0 | AF91: 0 | AG91: 0 | AH91: 0 | AI91: 0 | AJ91: 0 | AK91: 0 | AL91: 0 | AM91: 0 | AN91: 0 | AO91: 0 | AP91: 0 | AQ91: 0 | AR91: ETP2016_transport_summary
A92: 9 | B92: Passenger transport - Rail | C92: 114.8148148 | D92: 119.4444445 | E92: 105.5555556 | F92: 119.4444445 | G92: 119.4444445 | H92: 119.4444445 | I92: 119.4444445 | J92: 119.4444445 | K92: 119.4444445 | L92: 119.4444445 | M92: 119.4444445 | N92: 122.2222222 | O92: 125 | P92: 127.7777778 | Q92: 130.5555556 | R92: 133.3333333 | S92: 135.5555556 | T92: 137.7777778 | U92: 140 | V92: 142.2222222 | W92: 144.4444445 | X92: 147.7777778 | Y92: 151.1111111 | Z92: 154.4444445 | AA92: 157.7777778 | AB92: 161.1111111 | AC92: 165.5555556 | AD92: 170 | AE92: 174.4444445 | AF92: 178.8888889 | AG92: 183.3333333 | AH92: 188.8888889 | AI92: 194.4444445 | AJ92: 200 | AK92: 205.5555556 | AL92: 211.1111111 | AM92: 218.3333334 | AN92: 225.5555556 | AO92: 232.7777778 | AP92: 240 | AQ92: 247.2222222 | AR92: ETP2016_transport_summary | AU92: Note: Conversion from Exajoules to Terawatts
A93: 10 | B93: Other transport | C93: 109.2592593 | D93: 113.8888889 | E93: 111.1111111 | F93: 119.4444445 | G93: 120.2380952 | H93: 121.031746 | I93: 121.8253968 | J93: 122.6190476 | K93: 123.4126984 | L93: 124.2063492 | M93: 125 | N93: 129.4444445 | O93: 133.8888889 | P93: 138.3333333 | Q93: 142.7777778 | R93: 147.2222222 | S93: 155 | T93: 162.7777778 | U93: 170.5555556 | V93: 178.3333333 | W93: 186.1111111 | X93: 197.7777778 | Y93: 209.4444445 | Z93: 221.1111111 | AA93: 232.7777778 | AB93: 244.4444445 | AC93: 260 | AD93: 275.5555556 | AE93: 291.1111111 | AF93: 306.6666667 | AG93: 322.2222222 | AH93: 341.1111111 | AI93: 360 | AJ93: 378.8888889 | AK93: 397.7777778 | AL93: 416.6666667 | AM93: 437.7777778 | AN93: 458.8888889 | AO93: 480 | AP93: 501.1111112 | AQ93: 522.2222223 | AR93: ETP2016_transport_summary | AU93: Note: Conversion from Exajoules to Terawatts | AY93: (See ETP2015_flows_download_transport)
A94: 11 | B94: Services / Commercial Buildings | C94: 4217.789497 | D94: 4242.522627 | E94: 4377.370142 | F94: 4923.844369 | G94: 4993.17273 | H94: 5062.501091 | I94: 5131.829452 | J94: 5201.157813 | K94: 5270.486174 | L94: 5339.814535 | M94: 5409.142895 | N94: 5478.877068 | O94: 5548.611241 | P94: 5618.345414 | Q94: 5688.079586 | R94: 5757.813759 | S94: 5818.424107 | T94: 5879.034454 | U94: 5939.644802 | V94: 6000.255149 | W94: 6060.865497 | X94: 6092.07826 | Y94: 6123.291023 | Z94: 6154.503786 | AA94: 6185.716549 | AB94: 6216.929311 | AC94: 6248.105986 | AD94: 6279.282661 | AE94: 6310.459335 | AF94: 6341.63601 | AG94: 6372.812684 | AH94: 6405.895815 | AI94: 6438.978947 | AJ94: 6472.062078 | AK94: 6505.145209 | AL94: 6538.22834 | AM94: 6571.810021 | AN94: 6605.391702 | AO94: 6638.973382 | AP94: 6672.555063 | AQ94: 6706.136743 | AR94: ETP2016_buildings_summary
A96: Scope 2 Emissions (MT CO2)
A97: Code | B97: Sector | C97: 2010 | D97: 2011 | E97: 2012 | F97: 2013 | G97: 2014 | H97: 2015 | I97: 2016 | J97: 2017 | K97: 2018 | L97: 2019 | M97: 2020 | N97: 2021 | O97: 2022 | P97: 2023 | Q97: 2024 | R97: 2025 | S97: 2026 | T97: 2027 | U97: 2028 | V97: 2029 | W97: 2030 | X97: 2031 | Y97: 2032 | Z97: 2033 | AA97: 2034 | AB97: 2035 | AC97: 2036 | AD97: 2037 | AE97: 2038 | AF97: 2039 | AG97: 2040 | AH97: 2041 | AI97: 2042 | AJ97: 2043 | AK97: 2044 | AL97: 2045 | AM97: 2046 | AN97: 2047 | AO97: 2048 | AP97: 2049 | AQ97: 2050
A98: 1 | B98: Power Generation | C98: =D98+((D98-E98)) -> 0 | D98: =D81*D$64 -> 0 | E98: 0 | F98: 0 | G98: 0 | H98: 0 | I98: 0 | J98: 0 | K98: 0 | L98: 0 | M98: 0 | N98: 0 | O98: 0 | P98: 0 | Q98: 0 | R98: 0 | S98: 0 | T98: 0 | U98: 0 | V98: 0 | W98: 0 | X98: 0 | Y98: 0 | Z98: 0 | AA98: 0 | AB98: 0 | AC98: 0 | AD98: 0 | AE98: 0 | AF98: 0 | AG98: 0 | AH98: 0 | AI98: 0 | AJ98: 0 | AK98: 0 | AL98: 0 | AM98: 0 | AN98: 0 | AO98: 0 | AP98: 0 | AQ98: 0
A99: 2 | B99: Iron & Steel Industry | C99: =+C82*C$64 -> 645.7216187 | D99: =+D82*D$64 -> 646.9708025 | E99: 621.1498064 | F99: 687.255505 | G99: 676.9837577 | H99: 667.0261897 | I99: 657.3633771 | J99: 647.977465 | K99: 638.8520119 | L99: 629.9718528 | M99: 621.3229776 | N99: 601.0786362 | O99: 581.1716669 | P99: 561.5853395 | Q99: 542.3040117 | R99: 523.3130428 | S99: 496.8233025 | T99: 470.8457547 | U99: 445.3556175 | V99: 420.3296825 | W99: 395.7461917 | X99: 370.6733897 | Y99: 345.8244907 | Z99: 321.1897121 | AA99: 296.7598331 | AB99: 272.5261549 | AC99: 249.5130811 | AD99: 226.7270824 | AE99: 204.1592545 | AF99: 181.8011524 | AG99: 159.6447616 | AH99: 145.5550864 | AI99: 131.5004113 | AJ99: 117.4793133 | AK99: 103.4904453 | AL99: 89.53253153 | AM99: 82.8651102 | AN99: 76.28371174 | AO99: 69.78506204 | AP99: 63.36605106 | AQ99: 57.02372269
A100: 3 | B100: Cement | C100: 224.1414917 | D100: 211.4135263 | E100: 217.6797554 | F100: 213.4504581 | G100: 205.8154646 | H100: 198.5235204 | I100: 191.5534169 | J100: 184.8856583 | K100: 178.5022924 | L100: 172.3867607 | M100: 166.5237657 | N100: 160.2537814 | O100: 154.147479 | P100: 148.1967416 | Q100: 142.39398 | R100: 136.7320909 | S100: 129.4552291 | T100: 122.3548729 | U100: 115.4224821 | V100: 108.650059 | W100: 102.0301057 | X100: 95.40909972 | Y100: 88.87007151 | Z100: 82.40943939 | AA100: 76.02382733 | AB100: 69.71005039 | AC100: 64.58613028 | AD100: 59.36877163 | AE100: 54.0616385 | AF100: 48.66820582 | AG100: 43.19177149 | AH100: 39.4540231 | AI100: 35.70971528 | AJ100: 31.95911472 | AK100: 28.20247385 | AL100: 24.4400318 | AM100: 22.7688163 | AN100: 21.09552557 | AO100: 19.42023858 | AP100: 17.74303037 | AQ100: 16.06397225
B101: Chemical and Petrochemical Industry | C101: 722.9277954 | D101: 686.5890477 | E101: 635.1024805 | F101: 664.4826297 | G101: 696.4949698 | H101: 726.4946541 | I101: 754.6061128 | J101: 780.9437263 | K101: 805.6128196 | L101: 828.7105412 | M101: 850.326641 | N101: 829.9932738 | O101: 809.481826 | P101: 788.8011284 | Q101: 767.9594377 | R101: 746.9644821 | S101: 713.8339778 | T101: 680.872801 | U101: 648.072759 | V101: 615.4261792 | W101: 582.9258687 | X101: 538.43902 | Y101: 495.4504253 | Z101: 453.8946245 | AA101: 413.7099157 | AB101: 374.8380903 | AC101: 333.6756828 | AD101: 294.7150035 | AE101: 257.8697151 | AF101: 223.0579361 | AG101: 190.2019571 | AH101: 170.9713791 | AI101: 152.3104412 | AJ101: 134.1959824 | AK101: 116.6060808 | AL101: 99.5199712 | AM101: 91.31803409 | AN101: 83.34751872 | AO101: 75.59961697 | AP101: 68.06596211 | AQ101: 60.73860149
A102: 4 | B102: Aluminium | C102: 354.6437887 | D102: 399.675647 | E102: 433.7040064 | F102: 511.5618724 | G102: 515.7989224 | H102: 519.6135782 | I102: 523.0319538 | J102: 526.0780541 | K102: 528.7739837 | L102: 531.1401309 | M102: 533.1953316 | N102: 525.4023015 | O102: 517.067433 | P102: 508.2175958 | Q102: 498.877912 | R102: 489.0718956 | S102: 472.9751257 | T102: 456.317637 | U102: 439.1265592 | V102: 421.4272996 | W102: 403.2436775 | X102: 381.7633735 | Y102: 359.8821487 | Z102: 337.6175196 | AA102: 314.9859971 | AB102: 292.0031575 | AC102: 267.9592942 | AD102: 244.036761 | AE102: 220.2308003 | AF102: 196.5368998 | AG102: 172.9507772 | AH102: 156.335123 | AI102: 140.049356 | AJ102: 124.0800635 | AK102: 108.41455 | AL102: 93.04079004 | AM102: 85.87659346 | AN102: 78.84223774 | AO102: 71.93278102 | AP102: 65.14352908 | AQ102: 58.47002004
A103: 5 | B103: Pulp & Paper | C103: 321.7036435 | D103: 298.5571672 | E103: 291.8597375 | F103: 286.4387238 | G103: 279.6283676 | H103: 273.0886389 | I103: 266.8028063 | J103: 260.75549 | K103: 254.9325276 | L103: 249.3208564 | M103: 243.9084083 | N103: 234.7280221 | O103: 225.7870956 | P103: 217.0737538 | Q103: 208.5768944 | R103: 200.2861255 | S103: 189.618516 | T103: 179.2104625 | U103: 169.0494069 | V103: 159.1235881 | W103: 149.4219801 | X103: 139.0534563 | Y103: 128.9089377 | Z103: 118.9786371 | AA103: 109.2533297 | AB103: 99.72431238 | AC103: 90.88570997 | AD103: 82.21315498 | AE103: 73.70013614 | AF103: 65.34047819 | AG103: 57.12832053 | AH103: 51.60061611 | AI103: 46.19036706 | AJ103: 40.8927978 | AK103: 35.70338814 | AL103: 30.61785651 | AM103: 28.17913283 | AN103: 25.7970703 | AO103: 23.46951235 | AP103: 21.19441048 | AQ103: 18.96981756
B104: Manufacture of light-road automotor vehicles | C104: 2522.915261 | D104: 2383.0305 | E104: 2530.205532 | F104: 2429.656535 | G104: 2400.537464 | H104: 2372.131773 | I104: 2344.395357 | J104: 2317.287674 | K104: 2290.771393 | L104: 2264.812079 | M104: 2239.377921 | N104: 2172.976184 | O104: 2107.220849 | P104: 2042.079862 | Q104: 1977.523252 | R104: 1913.522967 | S104: 1829.999908 | T104: 1746.748773 | U104: 1663.756406 | V104: 1581.010487 | W104: 1498.499463 | X104: 1411.812856 | Y104: 1324.697842 | Z104: 1237.173139 | AA104: 1149.256389 | AB104: 1060.964235 | AC104: 981.9298247 | AD104: 901.6819281 | AE104: 820.2681307 | AF104: 737.7335616 | AG104: 654.1210504 | AH104: 598.106698 | AI104: 541.8650702 | AJ104: 485.4054079 | AK104: 428.7364575 | AL104: 371.8665039 | AM104: 346.1703854 | AN104: 320.4886815 | AO104: 294.8208435 | AP104: 269.1663502 | AQ104: 243.5247064
A105: 6 | B105: Other Industry | C105: 2536.764181 | D105: 2383.0305 | E105: 2530.205532 | F105: 2429.656535 | G105: 2400.537464 | H105: 2372.131773 | I105: 2344.395357 | J105: 2317.287674 | K105: 2290.771393 | L105: 2264.812079 | M105: 2239.377921 | N105: 2172.976184 | O105: 2107.220849 | P105: 2042.079862 | Q105: 1977.523252 | R105: 1913.522967 | S105: =+S88*S$64 -> 1829.999908 | T105: 1746.748773 | U105: 1663.756406 | V105: 1581.010487 | W105: 1498.499463 | X105: 1411.812856 | Y105: 1324.697842 | Z105: 1237.173139 | AA105: 1149.256389 | AB105: 1060.964235 | AC105: 981.9298247 | AD105: 901.6819281 | AE105: 820.2681307 | AF105: 737.7335616 | AG105: 654.1210504 | AH105: 598.106698 | AI105: 541.8650702 | AJ105: 485.4054079 | AK105: 428.7364575 | AL105: 371.8665039 | AM105: 346.1703854 | AN105: 320.4886815 | AO105: 294.8208435 | AP105: 269.1663502 | AQ105: 243.5247064
B106: Passenger transport - Air | C106: 0 | D106: =+D89*D$64 -> 0 | E106: 0 | F106: 0 | G106: 0 | H106: 0 | I106: 0 | J106: 0 | K106: 0 | L106: 0 | M106: 0 | N106: 0 | O106: 0 | P106: 0 | Q106: 0 | R106: 0 | S106: 0 | T106: 0 | U106: 0 | V106: 0 | W106: 0 | X106: 0 | Y106: 0 | Z106: 0 | AA106: 0 | AB106: 0 | AC106: 0 | AD106: 0 | AE106: 0 | AF106: 0 | AG106: 0 | AH106: 0 | AI106: 0 | AJ106: 0 | AK106: 0 | AL106: 0 | AM106: 0 | AN106: 0 | AO106: 0 | AP106: 0 | AQ106: 0
A107: 7 | B107: Passenger transport - Light Road | C107: 13.92141869 | D107: 14.76268588 | E107: 16.36974193 | F107: 17.91550046 | G107: 17.63967741 | H107: 17.37248942 | I107: 17.11340264 | J107: 16.86192633 | K107: 16.61760861 | L107: 16.38003267 | M107: 16.14881346 | N107: 20.86409629 | O107: 25.13328559 | P107: 28.97850315 | Q107: 32.42043182 | R107: 35.47843068 | S107: 42.92124544 | T107: 49.28989132 | U107: 54.63634063 | V107: 59.00926609 | W107: 62.4542986 | X107: 71.14936165 | Y107: 77.92306277 | Z107: 82.85934819 | AA107: 86.03734407 | AB107: 87.53169757 | AC107: 91.89487779 | AD107: 93.99556562 | AE107: 93.92248114 | AF107: 91.7597656 | AG107: 87.58727305 | AH107: 86.38175192 | AI107: 83.78603728 | AJ107: 79.85665284 | AK107: 74.64709902 | AL107: 68.20805244 | AM107: 66.71514205 | AN107: 64.67183047 | AO107: 62.09906647 | AP107: 59.01674902 | AQ107: 55.44379226
A108: 8 | B108: Passenger transport - Heavy Road | C108: 0 | D108: 0 | E108: 0 | F108: 0 | G108: 0 | H108: 0 | I108: 0 | J108: 0 | K108: 0 | L108: 0 | M108: 0 | N108: 0 | O108: 0 | P108: 0 | Q108: 0 | R108: 0 | S108: 0 | T108: 0 | U108: 0 | V108: 0 | W108: 0 | X108: 0 | Y108: 0 | Z108: 0 | AA108: 0 | AB108: 0 | AC108: 0 | AD108: 0 | AE108: 0 | AF108: 0 | AG108: 0 | AH108: 0 | AI108: 0 | AJ108: 0 | AK108: 0 | AL108: 0 | AM108: 0 | AN108: 0 | AO108: 0 | AP108: 0 | AQ108: 0
A109: 9 | B109: Passenger transport - Rail | C109: 71.9273299 | D109: 70.53283253 | E109: 62.20501934 | F109: 70.03331998 | G109: 68.07106283 | H109: 66.19138374 | I109: 64.38917743 | J109: 62.65975093 | K109: 60.99878282 | L109: 59.40228716 | M109: 57.86658155 | N109: 56.66791584 | O109: 55.44107116 | P109: 54.18744491 | Q109: 52.90834359 | R109: 51.60499008 | S109: 49.399924 | T109: 47.19649825 | U109: 44.99463346 | V109: 42.7942553 | W109: 40.59529409 | X109: 38.4669313 | Y109: 36.29293334 | Z109: 34.07529408 | AA109: 31.81589286 | AB109: 29.51650267 | AC109: 27.52228501 | AD109: 25.45366644 | AE109: 23.31356449 | AF109: 21.10474609 | AG109: 18.8298372 | AH109: 17.46123404 | AI109: 16.03341337 | AJ109: 14.54878291 | AK109: 13.00962159 | AL109: 11.41808807 | AM109: 10.85225614 | AN109: 10.24854144 | AO109: 9.608385838 | AP109: 8.933158926 | AQ109: 8.224162518
A110: 10 | B110: Other transport | C110: 68.44697523 | D110: 67.25223567 | E110: 65.47896773 | F110: 70.03331998 | G110: 68.52336225 | H110: 67.07100346 | I110: 65.67268263 | J110: 64.32512637 | K110: 63.02532045 | L110: 61.77048465 | M110: 60.55805046 | N110: 60.0164745 | O110: 59.38354733 | P110: 58.66379906 | Q110: 57.86146512 | R110: 56.98050988 | S110: 56.48597868 | T110: 55.76037898 | U110: 54.81489076 | V110: 53.65998418 | W110: 52.30547508 | X110: 51.48205843 | Y110: 50.30307305 | Z110: 48.78405411 | AA110: 46.93964475 | AB110: 44.78365922 | AC110: 43.22291739 | AD110: 41.25823057 | AE110: 38.90543883 | AF110: 36.17956472 | AG110: 33.09486539 | AH110: 31.53293441 | AI110: 29.68471961 | AJ110: 27.56186095 | AK110: 25.17537584 | AL110: 22.53570015 | AM110: 21.75974004 | AN110: 20.85048086 | AO110: 19.8129961 | AP110: 18.65210498 | AQ110: 17.37238824
A111: 11 | B111: Services / Commercial Buildings | C111: 2642.292609 | D111: 2505.241155 | E111: 2579.631104 | F111: 2886.975362 | G111: 2845.595508 | H111: 2805.437741 | I111: 2766.426506 | J111: 2728.492351 | K111: 2691.571324 | L111: 2655.604434 | M111: 2620.537187 | N111: 2540.262637 | O111: 2460.967605 | P111: 2382.603516 | Q111: 2305.124955 | R111: 2228.489414 | S111: 2120.383097 | T111: 2013.893995 | U111: 1908.943862 | V111: 1805.459419 | W111: 1703.371966 | X111: 1585.783461 | Y111: 1470.654218 | Z111: 1357.876789 | AA111: 1247.349898 | AB111: 1138.977997 | AC111: 1038.697573 | AD111: 940.1809783 | AE111: 843.3590483 | AF111: 748.1661862 | AG111: 654.5401383 | AH111: 592.1727144 | AI111: 530.9424571 | AJ111: 470.8031306 | AK111: 411.7109719 | AL111: 353.624528 | AM111: 326.651751 | AN111: 300.1284115 | AO111: 274.0374035 | AP111: 248.3624784 | AQ111: 223.0881915
A112: Scope 2 Emissions index | B112: Chemical and Petrochemical Industry | C112: =C101/$C$101 -> 1 | D112: =D101/$C$101 -> 0.9497339181 | E112: 0.8785144029 | F112: 0.9191549058 | G112: 0.9634364237 | H112: 1.004933907 | I112: 1.043819476 | J112: 1.080251349 | K112: 1.114375218 | L112: 1.146325465 | M112: 1.176226238 | N112: 1.148099823 | O112: 1.119727075 | P112: 1.091120211 | Q112: 1.06229065 | R112: 1.033249084 | S112: 0.9874208493 | T112: 0.9418268398 | U112: 0.8964557222 | V112: 0.8512968835 | W112: 0.8063403736 | X112: 0.744803317 | Y112: 0.6853387413 | Z112: 0.6278560975 | AA112: 0.5722700363 | AB112: 0.5185000392 | AC112: 0.4615615625 | AD112: 0.407668657 | AE112: 0.3567018957 | AF112: 0.3085480147 | AG112: 0.2630995215 | AH112: 0.2364985551 | AI112: 0.2106855513 | AJ112: 0.1856284726 | AK112: 0.1612969947 | AL112: 0.1376623943 | AM112: 0.1263169499 | AN112: 0.1152916228 | AO112: 0.1045742292 | AP112: 0.09415319557 | AQ112: 0.08401752136
A113: Scope 2 Emissions index | B113: Manufacture of light-road automotor vehicles | C113: =C104/$C$104 -> 1 | D113: =D104/$C$104 -> 0.9445543166 | E113: 1.002889622 | F113: 0.9630353316 | G113: 0.9514934971 | H113: 0.9402344224 | I113: 0.9292406263 | J113: 0.9184960392 | K113: 0.9079858641 | L113: 0.8976964524 | M113: 0.8876151951 | N113: 0.861295747 | O113: 0.8352325114 | P113: 0.8094127828 | Q113: 0.783824682 | R113: 0.7584570902 | S113: 0.7253513172 | T113: 0.6923533263 | U113: 0.6594579026 | V113: 0.6266601623 | W113: 0.5939555267 | X113: 0.5595958287 | Y113: 0.5250663242 | Z113: 0.4903744323 | AA113: 0.4555271461 | AB113: 0.4205310626 | AC113: 0.3892044414 | AD113: 0.3573968346 | AE113: 0.3251271033 | AF113: 0.2924131353 | AG113: 0.2592719068 | AH113: 0.2370696738 | AI113: 0.2147773564 | AJ113: 0.1923986174 | AK113: 0.1699369234 | AL113: 0.1473955585 | AM113: 0.1372104687 | AN113: 0.1270310924 | AO113: 0.116857212 | AP113: 0.1066886211 | AQ113: 0.0965251232
A114: Scope 2 Emissions index | B114: Other industry | C114: =C105/$C$105 -> 1 | D114: =D105/$C$105 -> 0.9393977248 | E114: 0.9974145609 | F114: 0.9577778466 | G114: 0.9462990223 | H114: 0.9351014141 | I114: 0.9241676362 | J114: 0.913481707 | K114: 0.9030289099 | L114: 0.8927956711 | M114: 0.8827694502 | N114: 0.8565936875 | O114: 0.8306727385 | P114: 0.8049939672 | Q114: 0.7795455591 | R114: 0.7543164563 | S114: 0.7213914171 | T114: 0.6885735717 | U114: 0.6558577335 | V114: 0.6232390455 | W114: 0.5907129538 | X114: 0.5565408352 | Y114: 0.5221998372 | Z114: 0.4876973382 | AA114: 0.4530402933 | AB114: 0.4182352634 | AC114: 0.3870796631 | AD114: 0.3554457031 | AE114: 0.3233521416 | AF114: 0.2908167685 | AG114: 0.2578564674 | AH114: 0.2357754428 | AI114: 0.2136048255 | AJ114: 0.1913482584 | AK114: 0.1690091892 | AL114: 0.146590884 | AM114: 0.1364613976 | AN114: 0.1263375933 | AO114: 0.1162192551 | AP114: 0.1061061774 | AQ114: 0.09599816498
A115: Scope 2 Emissions index | B115: Other transport | C115: =C110/$C$110 -> 1 | D115: =D110/$C$110 -> 0.9825450349 | E115: 0.9566378573 | F115: 1.023176258 | G115: 1.001116003 | H115: 0.9798972597 | I115: 0.9594680029 | J115: 0.9397804089 | K115: 0.9207904402 | L115: 0.9024574781 | M115: 0.8847439971 | N115: 0.876831654 | O115: 0.8675846834 | P115: 0.8570692695 | Q115: 0.8453472915 | R115: 0.8324766681 | S115: 0.8252516416 | T115: 0.8146507394 | U115: 0.8008372988 | V115: 0.7839642877 | W115: 0.7641751137 | X115: 0.7521451204 | Y115: 0.7349203217 | Z115: 0.7127276837 | AA115: 0.6857811406 | AB115: 0.6542825168 | AC115: 0.6314803137 | AD115: 0.6027765351 | AE115: 0.5684026021 | AF115: 0.528577992 | AG115: 0.4835109992 | AH115: 0.4606914229 | AI115: 0.4336892829 | AJ115: 0.4026746377 | AK115: 0.3678084495 | AL115: 0.3292431852 | AM115: 0.317906525 | AN115: 0.3046223853 | AO115: 0.2894648891 | AP115: 0.2725044448 | AQ115: 0.2538079759
A118: Scope 2 Carbon Intensity
A119: Code | B119: Sector | C119: 2010 | D119: 2011 | E119: 2012 | F119: 2013 | G119: 2014 | H119: 2015 | I119: 2016 | J119: 2017 | K119: 2018 | L119: 2019 | M119: 2020 | N119: 2021 | O119: 2022 | P119: 2023 | Q119: 2024 | R119: 2025 | S119: 2026 | T119: 2027 | U119: 2028 | V119: 2029 | W119: 2030 | X119: 2031 | Y119: 2032 | Z119: 2033 | AA119: 2034 | AB119: 2035 | AC119: 2036 | AD119: 2037 | AE119: 2038 | AF119: 2039 | AG119: 2040 | AH119: 2041 | AI119: 2042 | AJ119: 2043 | AK119: 2044 | AL119: 2045 | AM119: 2046 | AN119: 2047 | AO119: 2048 | AP119: 2049 | AQ119: 2050 | AR119: Unit
A120: 1 | B120: Power Generation | C120: =C98/C20 -> 0 | D120: 0 | E120: 0 | F120: 0 | G120: 0 | H120: 0 | I120: 0 | J120: 0 | K120: 0 | L120: 0 | M120: 0 | N120: 0 | O120: 0 | P120: 0 | Q120: 0 | R120: 0 | S120: 0 | T120: 0 | U120: 0 | V120: 0 | W120: 0 | X120: 0 | Y120: 0 | Z120: 0 | AA120: 0 | AB120: 0 | AC120: 0 | AD120: 0 | AE120: 0 | AF120: 0 | AG120: 0 | AH120: 0 | AI120: 0 | AJ120: 0 | AK120: 0 | AL120: 0 | AM120: 0 | AN120: 0 | AO120: 0 | AP120: 0 | AQ120: 0 | AR120: tCO2 / MWh
A121: 2 | B121: Iron & Steel Industry | C121: =C99/C21 -> 0.448355654 | D121: 0.4261152621 | E121: 0.4017769171 | F121: 0.4166942571 | G121: 0.4069128898 | H121: 0.3974866471 | I121: 0.3883949868 | J121: 0.3796189788 | K121: 0.3711411482 | L121: 0.3629453349 | M121: 0.3550165713 | N121: 0.3387729634 | O121: 0.323153335 | P121: 0.3081236951 | Q121: 0.2936524204 | R121: 0.2797100561 | S121: 0.2622345592 | T121: 0.2454572312 | U121: 0.2293397873 | V121: 0.2138465869 | W121: 0.1989444146 | X121: 0.1844246402 | Y121: 0.17031061 | Z121: 0.1565852943 | AA121: 0.1432326136 | AB121: 0.1302373732 | AC121: 0.1183177365 | AD121: 0.1066878565 | AE121: 0.09533695664 | AF121: 0.08425479879 | AG121: 0.07343164998 | AH121: 0.06667396833 | AI121: 0.059987914 | AJ121: 0.05337195917 | AK121: 0.04682463539 | AL121: 0.04034453014 | AM121: 0.03728872028 | AN121: 0.03427996538 | AO121: 0.03131660242 | AP121: 0.02839705105 | AQ121: 0.02551980845 | AR121: tCO2 / ton crude steel
A122: 3 | B122: Cement | C122: =C100/C22 -> 0.06574607107 | D122: 0.05815776137 | E122: 0.05675277281 | F122: 0.05238901704 | G122: 0.05008694663 | H122: 0.04790635358 | I122: 0.04583912529 | J122: 0.04387782394 | K122: 0.04201561888 | L122: 0.04024622701 | M122: 0.03856385994 | N122: 0.03704437753 | O122: 0.03556817803 | P122: 0.03413315671 | Q122: 0.03273734544 | R122: 0.03137890176 | S122: 0.02966874825 | T122: 0.02800361069 | U122: 0.02638135501 | V122: 0.02479998241 | W122: 0.02325761879 | X122: 0.02174119467 | Y122: 0.02024444519 | Z122: 0.01876653528 | AA122: 0.01730667774 | AB122: 0.01586412993 | AC122: 0.01461411921 | AD122: 0.01335728309 | AE122: 0.01209455693 | AF122: 0.01082681298 | AG122: 0.009554864855 | AH122: 0.008707670308 | AI122: 0.007862969259 | AJ122: 0.007020802951 | AK122: 0.006181209121 | AL122: 0.005344222241 | AM122: 0.004980419405 | AN122: 0.004615923257 | AO122: 0.004250750403 | AP122: 0.003884916602 | AQ122: 0.003518436822 | AR122: tCO2 / tons cement
B123: Chemical and Petrochemical Industry | C123: =C112/C23 -> 0.9522322294 | D123: 0.8861150388 | E123: 0.7841956258 | F123: 0.814505705 | G123: 0.8154320048 | H123: 0.8140235932 | I123: 0.8107025869 | J123: 0.8058139507 | K123: 0.7996411608 | L123: 0.7924183144 | M123: 0.7843395768 | N123: 0.7422738697 | O123: 0.7025395236 | P123: 0.6649432526 | Q123: 0.6293128707 | R123: 0.5954944642 | S123: 0.5593729074 | T123: 0.5245936977 | U123: 0.4910841876 | V123: 0.4587768337 | W123: 0.4276087594 | X123: 0.3902446374 | Y123: 0.3548379648 | Z123: 0.3212737213 | AA123: 0.2894448354 | AB123: 0.2592515464 | AC123: 0.2283585989 | AD123: 0.1995988924 | AE123: 0.1728487318 | AF123: 0.1479924154 | AG123: 0.1249216459 | AH123: 0.1112866843 | AI123: 0.09826102712 | AJ123: 0.08581379757 | AK123: 0.07391598034 | AL123: 0.06254028969 | AM123: 0.05697067042 | AN123: 0.05162443778 | AO123: 0.04649139362 | AP123: 0.0415618983 | AQ123: 0.03682683449 | AR123: Index
A124: 4 | B124: Aluminium | C124: =C102/C24 -> 4.563034614 | D124: 4.31327192 | E124: 4.417265279 | F124: 4.341377282 | G124: 4.20535974 | H124: 4.076312168 | I124: 3.953670313 | J124: 3.836933859 | K124: 3.72565705 | L124: 3.619440983 | M124: 3.517927243 | N124: 3.373260372 | O124: 3.232785098 | P124: 3.096344133 | Q124: 2.963785465 | R124: 2.834962528 | S124: 2.670685006 | T124: 2.511611635 | U124: 2.357503811 | V124: 2.208136834 | W124: 2.06329896 | X124: 1.91401473 | Y124: 1.768659532 | Z124: 1.627089396 | AA124: 1.489166545 | AB124: 1.354759145 | AC124: 1.229161573 | AD124: 1.10692053 | AE124: 0.987903424 | AF124: 0.8719845502 | AG124: 0.759044647 | AH124: 0.6813602527 | AI124: 0.6061745547 | AJ124: 0.5333785843 | AK124: 0.4628693986 | AL124: 0.3945496773 | AM124: 0.3626423027 | AN124: 0.3315473672 | AO124: 0.3012340419 | AP124: 0.2716730413 | AQ124: 0.2428365279 | AR124: tCO2 / ton aluminium
A125: 5 | B125: Pulp & Paper | C125: =C103/C25 -> 0.7889156377 | D125: 0.7406494207 | E125: 0.7240346883 | F125: 0.7231741698 | G125: 0.6942443562 | H125: 0.6669215391 | I125: 0.6410879541 | J125: 0.6166364911 | K125: 0.5934695523 | L125: 0.5714980518 | M125: 0.550640536 | N125: 0.5225001557 | O125: 0.4956621112 | P125: 0.470047507 | Q125: 0.4455833362 | R125: 0.4222019592 | S125: 0.3944708019 | T125: 0.3679908113 | U125: 0.342688546 | V125: 0.3184958689 | W125: 0.2953494928 | X125: 0.2714876288 | Y125: 0.2486354151 | Z125: 0.2267379796 | AA125: 0.2057441025 | AB125: 0.1856059284 | AC125: 0.1673426143 | AD125: 0.149769129 | AE125: 0.13285202 | AF125: 0.116559824 | AG125: 0.1008629266 | AH125: 0.08968776137 | AI125: 0.07905562681 | AJ125: 0.06893392001 | AK125: 0.05929239853 | AL125: 0.05010298017 | AM125: 0.04611225913 | AN125: 0.04221425825 | AO125: 0.03840544852 | AP125: 0.03468247778 | AQ125: 0.03104215976 | AR125: tCO2 / ton paper and cardboard
B126: Manufacture of light-road automotor vehicles | C126: =C113/C35 -> 1 | D126: 0.9108527644 | E126: 0.9326004579 | F126: 0.8635867126 | G126: 0.8227933992 | H126: 0.7840474829 | I126: 0.7472323241 | J126: 0.7122393978 | K126: 0.6789675777 | L126: 0.647322498 | M126: 0.617215984 | N126: 0.5769888029 | O126: 0.5390451216 | P126: 0.5032577068 | Q126: 0.469506876 | R126: 0.4376799822 | S126: 0.4032521755 | T126: 0.3708162388 | U126: 0.3402676682 | V126: 0.3115073809 | W126: 0.2844414139 | X126: 0.2606875286 | Y126: 0.2379396601 | Z126: 0.2161659946 | AA126: 0.1953352871 | AB126: 0.1754168905 | AC126: 0.1579275873 | AD126: 0.1410710179 | AE126: 0.1248381024 | AF126: 0.109218887 | AG126: 0.09420267084 | AH126: 0.08378970124 | AI126: 0.07384311653 | AJ126: 0.06434730422 | AK126: 0.05528700286 | AL126: 0.04664730718 | AM126: 0.04224120652 | AN126: 0.03804223153 | AO126: 0.03404225791 | AP126: 0.03023345809 | AQ126: 0.02660829044 | AR126: Index
A127: 6 | B127: Other Industry | C127: =C114/C35 -> 1 | D127: 0.9058801589 | E127: 0.9275091256 | F127: 0.858872146 | G127: 0.818301535 | H127: 0.7797671438 | I127: 0.7431529693 | J127: 0.7083510794 | K127: 0.6752608997 | L127: 0.6437885796 | M127: 0.6138464256 | N127: 0.5738388562 | O127: 0.5361023203 | P127: 0.5005102793 | Q127: 0.4669437039 | R127: 0.4352905621 | S127: 0.4010507067 | T127: 0.3687918471 | U127: 0.3384100498 | V127: 0.3098067731 | W127: 0.282888567 | X127: 0.2592643609 | Y127: 0.2366406795 | Z127: 0.2149858826 | AA127: 0.194268896 | AB127: 0.1744592396 | AC127: 0.1570654155 | AD127: 0.1403008709 | AE127: 0.1241565755 | AF127: 0.1086226299 | AG127: 0.09368839155 | AH127: 0.08333226933 | AI127: 0.07343998586 | AJ127: 0.0639960139 | AK127: 0.05498517532 | AL127: 0.0463926462 | AM127: 0.04201059971 | AN127: 0.03783454812 | AO127: 0.0338564115 | AP127: 0.030068405 | AQ127: 0.02646302818 | AR127: Index
B128: Passenger transport - Air | C128: =C106/C28*1000000000000 -> 0 | D128: =D106/D28*1000000000000 -> 0 | E128: 0 | F128: 0 | G128: 0 | H128: 0 | I128: 0 | J128: 0 | K128: 0 | L128: 0 | M128: 0 | N128: 0 | O128: 0 | P128: 0 | Q128: 0 | R128: 0 | S128: 0 | T128: 0 | U128: 0 | V128: 0 | W128: 0 | X128: 0 | Y128: 0 | Z128: 0 | AA128: 0 | AB128: 0 | AC128: 0 | AD128: 0 | AE128: 0 | AF128: 0 | AG128: 0 | AH128: 0 | AI128: 0 | AJ128: 0 | AK128: 0 | AL128: 0 | AM128: 0 | AN128: 0 | AO128: 0 | AP128: 0 | AQ128: 0 | AR128: gCO2 / pKm
A129: 7 | B129: Passenger transport - Light Road | C129: =C107/C29*1000000000000 -> 0.599696333 | D129: =D107/D29*1000000000000 -> 0.6090275871 | E129: 0.6479109997 | F129: 0.6814291218 | G129: 0.6457465006 | H129: 0.61295111 | I129: 0.5875786144 | J129: 0.5637889607 | K129: 0.5414462916 | L129: 0.5204293819 | M129: 0.5006297599 | N129: 0.6309308824 | O129: 0.7418214893 | P129: 0.8353017784 | Q129: 0.9131484919 | R129: 0.9769430606 | S129: 1.16118265 | T129: 1.310517408 | U129: 1.428078348 | V129: 1.516703201 | W129: 1.578966943 | X129: 1.774044917 | Y129: 1.916570271 | Z129: 2.010691242 | AA129: 2.060221392 | AB129: 2.068669486 | AC129: 2.149571818 | AD129: 2.176448317 | AE129: 2.15295728 | AF129: 2.082507865 | AG129: 1.968278885 | AH129: 1.923649205 | AI129: 1.849137543 | AJ129: 1.746775882 | AK129: 1.618459158 | AL129: 1.465955519 | AM129: 1.423499135 | AN129: 1.369992884 | AO129: 1.306113705 | AP129: 1.232497446 | AQ129: 1.149741654 | AR129: gCO2 / pKm
A130: 8 | B130: Passenger transport - Heavy Road | C130: =C108/C30*1000000000000 -> 0 | D130: =D108/D30*1000000000000 -> 0 | E130: 0 | F130: 0 | G130: 0 | H130: 0 | I130: 0 | J130: 0 | K130: 0 | L130: 0 | M130: 0 | N130: 0 | O130: 0 | P130: 0 | Q130: 0 | R130: 0 | S130: 0 | T130: 0 | U130: 0 | V130: 0 | W130: 0 | X130: 0 | Y130: 0 | Z130: 0 | AA130: 0 | AB130: 0 | AC130: 0 | AD130: 0 | AE130: 0 | AF130: 0 | AG130: 0 | AH130: 0 | AI130: 0 | AJ130: 0 | AK130: 0 | AL130: 0 | AM130: 0 | AN130: 0 | AO130: 0 | AP130: 0 | AQ130: 0 | AR130: gCO2 / pKm
A131: 9 | B131: Passenger transport - Rail | C131: =C109/C31*1000000000000 -> 20.68101587 | D131: =D109/D31*1000000000000 -> 19.01357267 | E131: 15.78299303 | F131: 16.78275532 | G131: 15.45454649 | H131: 14.27688474 | I131: 13.5284123 | J131: 12.83264218 | K131: 12.18481737 | L131: 11.58070357 | M131: 11.01652185 | N131: 10.57871567 | O131: 10.1524374 | P131: 9.737291333 | Q131: 9.332894815 | R131: 8.938878292 | S131: 8.413154308 | T131: 7.905078966 | U131: 7.413778543 | V131: 6.938436035 | W131: 6.478286627 | X131: 6.029712193 | Y131: 5.589750835 | Z131: 5.158261594 | AA131: 4.735095973 | AB131: 4.320099744 | AC131: 3.941651767 | AD131: 3.568696631 | AE131: 3.20129541 | AF131: 2.839483988 | AG131: 2.483276816 | AH131: 2.238435059 | AI131: 1.999520344 | AJ131: 1.766354402 | AK131: 1.538762118 | AL131: 1.316572116 | AM131: 1.210271308 | AN131: 1.106633958 | AO131: 1.005564936 | AP131: 0.9069731437 | AQ131: 0.8107713685 | AR131: gCO2 / pKm
A132: 10 | B132: Other transport | C132: =C115/C35 -> 1 | D132: 0.9474879797 | E132: 0.8895903242 | F132: 0.9175171378 | G132: 0.8657039081 | H132: 0.8171217323 | I132: 0.7715391314 | J132: 0.7287441686 | K132: 0.6885424977 | L132: 0.6507556396 | M132: 0.6152194552 | N132: 0.5873964294 | O132: 0.5599246734 | P132: 0.53288844 | Q132: 0.5063585966 | R132: 0.4803941818 | S132: 0.4587908121 | T132: 0.4363172843 | U132: 0.4132167334 | V132: 0.3897019097 | W132: 0.3659584599 | X132: 0.3503865514 | Y132: 0.3330373392 | Z132: 0.3141833636 | AA132: 0.2940708521 | AB132: 0.2729220617 | AC132: 0.256235931 | AD132: 0.2379268398 | AE132: 0.2182478837 | AF132: 0.1974285454 | AG132: 0.1756766788 | AH132: 0.1628263795 | AI132: 0.1491077495 | AJ132: 0.1346736674 | AK132: 0.119662204 | AL132: 0.1041979023 | AM132: 0.0978697566 | AN132: 0.09122581801 | AO132: 0.0843254622 | AP132: 0.07722240317 | AQ132: 0.06996516674 | AR132: Index
A133: 11 | B133: Services / Commercial Buildings | C133: =C111/C33*1000000000 -> 74.78441814 | D133: =D111/D33*1000000000 -> 69.67718289 | E133: 70.52447009 | F133: 77.60548674 | G133: 75.23352288 | H133: 72.97019912 | I133: 70.80838573 | J133: 68.74155428 | K133: 66.76371615 | L133: 64.86936845 | M133: 63.05344627 | N133: 60.21946452 | O133: 57.49083597 | P133: 54.86190931 | Q133: 52.32742461 | R133: 49.88248032 | S133: 46.81001679 | T133: 43.85611797 | U133: 41.01434278 | V133: 38.27869571 | W133: 35.64358961 | X133: 32.78964781 | Y133: 30.05283203 | Z133: 27.4269031 | AA133: 24.90603069 | AB133: 22.48476163 | AC133: 20.27563355 | AD133: 18.14945278 | AE133: 16.10217489 | AF133: 14.12999804 | AG133: 12.22934571 | AH133: 10.94682252 | AI133: 9.711999882 | AJ133: 8.522555701 | AK133: 7.376307595 | AL133: 6.2712029 | AM133: 5.734561976 | AN133: 5.216427245 | AO133: 4.715956572 | AP133: 4.232355339 | AQ133: 3.764873255 | AR133: kgCO2 / m2
A136: Scope 3 Carbon Intensity
A137: Code | B137: Sector | C137: 2010 | D137: 2011 | E137: 2012 | F137: 2013 | G137: 2014 | H137: 2015 | I137: 2016 | J137: 2017 | K137: 2018 | L137: 2019 | M137: 2020 | N137: 2021 | O137: 2022 | P137: 2023 | Q137: 2024 | R137: 2025 | S137: 2026 | T137: 2027 | U137: 2028 | V137: 2029 | W137: 2030 | X137: 2031 | Y137: 2032 | Z137: 2033 | AA137: 2034 | AB137: 2035 | AC137: 2036 | AD137: 2037 | AE137: 2038 | AF137: 2039 | AG137: 2040 | AH137: 2041 | AI137: 2042 | AJ137: 2043 | AK137: 2044 | AL137: 2045 | AM137: 2046 | AN137: 2047 | AO137: 2048 | AP137: 2049 | AQ137: 2050 | AR137: Unit
B138: Manufacture of light-road automotor vehicles | C138: =AVERAGE(J73,K73) -> 122.4158675 | D138: 119.3349059 | E138: 116.4054108 | F138: 113.3432696 | G138: 110.1539011 | H138: 107.1156185 | I138: 104.2179329 | J138: 101.4513046 | K138: 98.53776251 | L138: 95.46783868 | M138: 92.50275832 | N138: 89.63724034 | O138: 86.86635249 | P138: 84.01215513 | Q138: 81.06902012 | R138: 78.20524951 | S138: 75.41767567 | T138: 72.70329732 | U138: 69.99993822 | V138: 67.29935403 | W138: 64.65318561 | X138: 62.05980465 | Y138: 59.51764715 | Z138: 57.04473203 | AA138: 54.63757974 | AB138: 52.27334647 | AC138: 49.95089447 | AD138: 47.66912587 | AE138: 45.60184241 | AF138: 43.74241984 | AG138: 41.90960539 | AH138: 40.10283194 | AI138: 38.32154843 | AJ138: =AI138*($AI$138/$AH$138) -> 36.61938579 | AK138: 34.99282963 | AL138: 33.43852169 | AM138: 31.95325283 | AN138: 30.53395649 | AO138: 29.17770232 | AP138: 27.8816901 | AQ138: 26.64324403 | AR138: gCO2/pkm

Sheet Checks (hidden)
C1: 2010-2050
C2: SDA v8 | E2: SDA v8 | F2: SDA v8 | H2: SDA v7 | I2: SDA v7 | J2: SDA v7
C3: Scope 1 | E3: Scope 2 | F3: Total | H3: Scope 1 | I3: Scope 2 | J3: Total | N3: =+F2 -> SDA v8 | O3: =+J2 -> SDA v7
B4: Power Generation | C4: =+SUM('Back-end. Data'!C3:AQ3) -> 338317.7294 | D4: =SUM('Back-end. Data'!C46:AQ46) -> 1297339.906 | E4: =+SUM('Back-end. Data'!C98:AQ98) -> 0 | F4: =+E4+C4 -> 338317.7294 | H4: 337329.7855 | I4: 0 | J4: =+I4+H4 -> 337329.7855 | M4: =+B4 -> Power Generation | N4: =+F4 -> 338317.7294 | O4: =+J4 -> 337329.7855
B5: Iron & Steel Industry | C5: =+SUM('Back-end. Data'!C4:AQ4) -> 88894.80698 | D5: =SUM('Back-end. Data'!C47:AQ47) -> 80035.60513 | E5: =+SUM('Back-end. Data'!C99:AQ99) -> 15744.84897 | F5: =+E5+C5 -> 104639.656 | H5: 94240.21817 | I5: 15653.11715 | J5: =+I5+H5 -> 109893.3353 | M5: Iron & Steel Industry | N5: =+F5 -> 104639.656 | O5: =+J5 -> 109893.3353
B6: Cement | C6: =+SUM('Back-end. Data'!C5:AQ5) -> 86992.97809 | D6: =SUM('Back-end. Data'!C48:AQ48) -> 177943.8706 | E6: =+SUM('Back-end. Data'!C100:AQ100) -> 4423.66888 | F6: 91416.64697 | H6: 89784.5193 | I6: 4688.279404 | J6: 94472.7987 | M6: Cement | N6: 91416.64697 | O6: 94472.7987
B7: Chemical and Petrochemical Industry | C7: =+SUM('Back-end. Data'!C6:AQ6) -> 83300.57631 | E7: =+SUM('Back-end. Data'!C101:AQ101) -> 19965.14911 | F7: 103265.7254 | H7: 78294.24093 | I7: 18610.14658 | J7: 96904.3875 | M7: Chemical and Petrochemical Industry | N7: 103265.7254 | O7: 96904.3875
B8: Aluminium | C8: =+SUM('Back-end. Data'!C7:AQ7) -> 11824.10842 | D8: =SUM('Back-end. Data'!C50:AQ50) -> 7607.421768 | E8: =+SUM('Back-end. Data'!C102:AQ102) -> 13879.09648 | F8: 25703.2049 | H8: 11544.17832 | I8: 11739.11675 | J8: 23283.29506 | M8: Aluminium | N8: 25703.2049 | O8: 23283.29506
B9: Pulp & Paper | C9: =+SUM('Back-end. Data'!C8:AQ8) -> 6895.815439 | D9: =SUM('Back-end. Data'!C51:AQ51) -> 20764.7699 | E9: =+SUM('Back-end. Data'!C103:AQ103) -> 6247.673654 | F9: 13143.48909 | H9: 8446.750101 | I9: 6891.225042 | J9: 15337.97514 | M9: Pulp & Paper | N9: 13143.48909 | O9: 15337.97514
B10: Manufacture of light-road automotor vehicles
B11: Other Industry | C11: =+SUM('Back-end. Data'!C10:AQ10) -> 74920.12031 | E11: =+SUM('Back-end. Data'!C105:AQ105) -> 58822.09862 | F11: 133742.2189 | H11: 52525.692 | I11: 63707.54441 | J11: 116233.2364 | M11: =+B11 -> Other Industry | N11: 133742.2189 | O11: 116233.2364
B12: Passenger transport - Air | C12: =+SUM('Back-end. Data'!C11:AQ11) -> 33309.80303 | D12: =SUM('Back-end. Data'!C54:AQ54) -> 379687.2305 | E12: =+SUM('Back-end. Data'!C106:AQ106) -> 0 | F12: 33309.80303 | H12: 36600.3103 | I12: 0 | J12: 36600.3103 | M12: Passenger transport - Air | N12: 33309.80303 | O12: 36600.3103
B13: Passenger transport - Light Road | C13: =+SUM('Back-end. Data'!C12:AQ12) -> 126702.7924 | D13: =SUM('Back-end. Data'!C55:AQ55) -> 1563358.55 | E13: =+SUM('Back-end. Data'!C107:AQ107) -> 2157.776038 | F13: 128860.5684 | H13: 96069.6245 | I13: 1623.533333 | J13: 97693.15783 | M13: Passenger transport - Light Road | N13: 128860.5684 | O13: 97693.15783
B14: Passenger transport - Heavy Road | C14: =+SUM('Back-end. Data'!C13:AQ13) -> 16133.43555 | D14: =SUM('Back-end. Data'!C56:AQ56) -> 777170.4856 | E14: =+SUM('Back-end. Data'!C108:AQ108) -> 0 | F14: 16133.43555 | H14: 14922.07058 | I14: 0 | J14: 14922.07058 | M14: Passenger transport - Heavy Road | N14: 16133.43555 | O14: 14922.07058
B15: Passenger transport - Rail | C15: =+SUM('Back-end. Data'!C14:AQ14) -> 1866.718527 | D15: =SUM('Back-end. Data'!C57:AQ57) -> 265944.9031 | E15: =+SUM('Back-end. Data'!C109:AQ109) -> 1616.797197 | F15: 3483.515724 | H15: 1285.528577 | I15: 1048.892791 | J15: 2334.421368 | M15: Passenger transport - Rail | N15: 3483.515724 | O15: 2334.421368
B16: Other transport | C16: =+SUM('Back-end. Data'!C15:AQ15) -> 152320.3958 | E16: =+SUM('Back-end. Data'!C110:AQ110) -> 1957.98184 | F16: 154278.3777 | H16: 95160.68218 | I16: 2173.28384 | J16: 97333.96602 | M16: Other transport | N16: 154278.3777 | O16: 97333.96602
B17: Services / Commercial Buildings | C17: =+SUM('Back-end. Data'!C16:AQ16) -> 29290.5658 | D17: =SUM('Back-end. Data'!C59:AQ59) -> 1948946.847 | E17: =+SUM('Back-end. Data'!C111:AQ111) -> 65954.41407 | F17: 95244.97987 | H17: 26698.12034 | I17: 59739.02998 | J17: 86437.15032 | M17: Services / Commercial Buildings | N17: 95244.97987 | O17: 86437.15032
C18: =+SUM(C4:C17) -> 1050769.846 | E18: =+SUM(E4:E17) -> 190769.5049 | F18: =+SUM(F4:F17) -> 1241539.351 | H18: =+SUM(H4:H17) -> 942901.7208 | I18: =+SUM(I4:I17) -> 185874.1693 | J18: 1128775.89
C20: 2011-2050
C21: SDA v8 | E21: SDA v8 | F21: SDA v8 | H21: SDA v7 | I21: SDA v7 | J21: SDA v7
C22: Scope 1 | E22: Scope 2 | F22: Total | H22: Scope 1 | I22: Scope 2 | J22: Total
B23: =+B4 -> Power Generation | C23: =SUM('Back-end. Data'!D3:AQ3) -> 324826.2497 | E23: =+SUM('Back-end. Data'!D98:AQ98) -> 0 | F23: =+E23+C23 -> 324826.2497 | H23: 324558.1589 | I23: 0 | J23: =+I23+H23 -> 324558.1589
B24: =+B5 -> Iron & Steel Industry | C24: =SUM('Back-end. Data'!D4:AQ4) -> 86103.64766 | E24: =+SUM('Back-end. Data'!D99:AQ99) -> 15099.12735 | F24: 101202.775 | H24: 94240.21817 | I24: 14981.0335 | J24: 109221.2517
B25: Cement | C25: =SUM('Back-end. Data'!D5:AQ5) -> 84810.35359 | E25: =+SUM('Back-end. Data'!D100:AQ100) -> 4199.527388 | F25: 89009.88098 | H25: 89784.5193 | I25: 4483.314491 | J25: 94267.83379
B26: Chemical and Petrochemical Industry | C26: =SUM('Back-end. Data'!D6:AQ6) -> 82335.264 | E26: =+SUM('Back-end. Data'!D101:AQ101) -> 19242.22131 | F26: 101577.4853 | H26: 78294.24093 | I26: 17872.90277 | J26: 96167.1437
B27: Aluminium | C27: =SUM('Back-end. Data'!D7:AQ7) -> 11661.95342 | E27: =+SUM('Back-end. Data'!D102:AQ102) -> 13524.45269 | F27: 25186.40611 | H27: 11544.17832 | I27: 11373.7403 | J27: 22917.91862
B28: Pulp & Paper | C28: =SUM('Back-end. Data'!D8:AQ8) -> 6657.274335 | E28: =+SUM('Back-end. Data'!D103:AQ103) -> 5925.970011 | F28: 12583.24435 | H28: 8446.750101 | I28: 6586.279838 | J28: 15033.02994
B29: Manufacture of light-road automotor vehicles
B30: Other Industry | C30: =SUM('Back-end. Data'!D10:AQ10) -> 72816.33611 | E30: =+SUM('Back-end. Data'!D105:AQ105) -> 56285.33444 | F30: =+E30+C30 -> 129101.6706 | H30: 52525.692 | I30: 61473.48957 | J30: =+I30+H30 -> 113999.1816
B31: Passenger transport - Air | C31: =SUM('Back-end. Data'!D11:AQ11) -> 32424.41418 | E31: =+SUM('Back-end. Data'!D106:AQ106) -> 0 | F31: 32424.41418 | H31: 36600.3103 | I31: 0 | J31: 36600.3103
B32: Passenger transport - Light Road | C32: =SUM('Back-end. Data'!D12:AQ12) -> 123293.4598 | E32: =+SUM('Back-end. Data'!D107:AQ107) -> 2143.85462 | F32: 125437.3144 | H32: 96069.6245 | I32: 1608.755023 | J32: 97678.37952
B33: Passenger transport - Heavy Road | C33: =SUM('Back-end. Data'!D13:AQ13) -> 15700.80797 | E33: =+SUM('Back-end. Data'!D108:AQ108) -> 0 | F33: 15700.80797 | H33: 14922.07058 | I33: 0 | J33: 14922.07058
B34: Passenger transport - Rail | C34: =SUM('Back-end. Data'!D14:AQ14) -> 1792.767196 | E34: =+SUM('Back-end. Data'!D109:AQ109) -> 1544.869867 | F34: 3337.637064 | H34: 1285.528577 | I34: 1009.483964 | J34: 2295.012541
B35: Other transport | C35: =SUM('Back-end. Data'!D15:AQ15) -> 149418.8168 | E35: =+SUM('Back-end. Data'!D110:AQ110) -> 1889.534865 | F35: 151308.3517 | H35: 95160.68218 | I35: 2109.212943 | J35: 97269.89512
B36: Services / Commercial Buildings | C36: =SUM('Back-end. Data'!D16:AQ16) -> 28388.76572 | E36: =+SUM('Back-end. Data'!D111:AQ111) -> 63312.12146 | F36: 91700.88718 | H36: 26698.12034 | I36: 57310.33956 | J36: 84008.4599
C37: =+SUM(C23:C36) -> 1020230.111 | E37: =+SUM(E23:E36) -> 183167.014 | F37: =+SUM(F23:F36) -> 1203397.125 | H37: =+SUM(H23:H36) -> 930130.0942 | I37: =+SUM(I23:I36) -> 178808.552 | J37: 1108938.646
C40: scope 1 | E40: scope 2
B41: RCP | C41: 979 | E41: 0
B42: SDA v8 s1+2 | C42: =+C37/1000 -> 1020.230111 | E42: =+E37/1000 -> 183.167014
B43: SDA v7 s1+2 | C43: =+H37/1000 -> 930.1300942 | E43: =+I37/1000 -> 178.808552
